{"text_format":"1","workbook":"xlsx","n_sheets":68,"sheets":["Hoja principal","Información del producto","Documentación adjunta","Productos gráficos (Lote)","Ftalatos","Seguridad en Juguetes","Detalles de autopartes","Amortiguadores F1","Amortiguadores F2","Amortiguadores F3","Amortiguadores F4","Limpiaparabrisas ESC(L)","Limpiaparabrisas ESC(P)","Limpiaparabrisas BRA(L)","Limpiaparabrisas BRA(P)","Limpiaparabrisas MOT(L)","Limpiaparabrisas MOT(P)","Limpiaparabrisas ACC(L)","Limpiaparabrisas ACC(P)","Ruedas RSISICA-AC","Ruedas RSISICA-AL","Ruedas RSICOCA-AC","Ruedas RSICOCA-AL","Ruedas RARSICA-AC","Ruedas RARSICA-AL","Ruedas RARCOCA-AC","Ruedas RARCOCA-AL","Ruedas RMI-AC","Fricción XXX-PA-A","Fricción XXX-ZAC-A","Fricción XXX-BLO-A","Fricción XXX-PA-M","Fricción XXX-ZAC-M","Fricción XXX-C-A","Fricción XXX-B-A","Fricción XXX-C-M","Liquido Freno TIPO 3","Líquido Freno TIPO 4","Líquido Freno TIPO 5.1","Lamparas Filamento","Lamparas gas","Lámparas filamento señal","Extremos F1","Extremos F2","Extremos F3","Espejos EX","Espejos IN","Fijación TRA","Fijación GAN","Fijación OJA","Fijación PER","Fijación PLA","Cascos TUA","Cascos TUI","Cascos TUM","Cascos COA","Cascos COI","Cascos COM","Cajas ME 1","Cajas ME 2","Cajas HI 1","Cajas HI 2","Cubiertas F1","Cubiertas F2","Cubiertas F3","Cubiertas F4","Baterias F1","Baterias F2"],"not_rendered":{"charts":0,"images":30,"macros":1,"external_links":0,"defined_names":4,"comments":2,"pivot_tables":0},"unopened":[],"bounds":{"document_bytes":16777216,"sheet_cells":100000,"rows_first":2000,"rows_last":500,"rows_between":2000,"halvings":0,"cell_chars":16384,"cell_head_chars":4096},"cells_cut":0,"cells_raw":0,"read":"whole","date_system":"1900"}

{"sheet":"Hoja principal","index":0,"n_rows":66,"n_cols":1,"rows_kept":66,"cut":false,"hidden":false,"merged":[]}
[]
["Solicitud de Certificación IRAM de Productos (DC-FS 002 Rev. 9)"]
["Application form for IRAM Product Certification  (DC-FS 002 Rev. 9)"]
[]
[]
["Nº de Solicitud / Application reference:"]
["Presupuesto N° / Quotation N°: "]
["O.T. N°:"]
["Estos campos son completados por IRAM exclusivamente / These fields are filled in by IRAM only."]
[]
[]
[]
[]
[]
[]
[]
[]
[]
[]
[]
[]
[]
[]
[]
[]
["(*) El diseño de las marcas exhibido es orientativo, el marcado deberá estar de acuerdo al procedimiento DC-PG 129 y a las disposiciones legales vigentes aplicables / The design of the Conformity mark shown above is for the purpose of guideline, marking shall be in accordance with DC-PG 129 and the applicable legal dispositions"]
["1 - Información del solicitante / Applicant information"]
["Empresa solicitante / Company name:"]
[]
["Domicilio legal / Office address:"]
[]
["C.U.I.T. (solo para solicitantes argentinos) / (only for argentine license-certificate holders):"]
["     "]
["Persona de contacto, telefono & e-mail / Contact person, phone & e-mail:"]
["     "]
["Observaciones – Información adicional / Comments – Additional information:"]
["     "]
[]
["2 - Información de facturación / Invoicing information"]
["Emitir la factura de Arancel Inicial a nombre de: (Razón social y dirección) / Issue the bill for the Initial fee to (name and address)(**):"]
["     "]
["Persona de contacto, Teléfono & e-mail  / Contact person, Phone & e-mail: "]
["     "]
["Emitir la factura de Uso de marca a nombre de: (Razón social y dirección) / Issue the bill for IRAM Mark use fee to (name and address)(**):"]
["     "]
["Persona de contacto, Teléfono & e-mail  / Contact person, Phone & e-mail: "]
["     "]
["C.U.I.T. (Only for argentine companies):"]
[]
["Presupuesto / Quotation"]
["     "]
["Orden de compra (si aplica) / Purchase order (if applicable)"]
[]
["Only for NO argentine company:"]
[]
[]
["Observaciones – Información adicional / Comments – Additional information:"]
["     "]
["(**) Si la persona o institucion designada para recibir las facturas se negara a cancelarlas, el titular de la licencia asumirá solidariamente la obligación de hacerlo en los plazos y términos acordados./ In case the designed person or institution to receive the invoices deny to cancel them, the License Holder will assume the obligation to do so in the agreed terms."]
[]
[]
[]
["     "]
["Firma y aclaración de la persona autorizada por el solicitante"]
["Signature and full name of applicant’s representative"]
[{"$f":"\"Fecha / Date:\"","v":"Fecha / Date:"}]

{"sheet":"Información del producto","index":1,"n_rows":28,"n_cols":1,"rows_kept":28,"cut":false,"hidden":false,"merged":[]}
["3 - Información del producto / Product information"]
["Nombre y domicilio del fabricante / Name and address of manufacturer:"]
["     "]
["Nombre(s), domicilio(s), teléfono(s), e-mail y Persona de contacto para cada una de las fábricas en las que se produce el producto para el que solicita la Certificación / Name(s), address, telephones, e-mail and contact person for each factory that manufactures the product for which the Certification is requested:"]
["     "]
["Producto / Product:"]
["     "]
["Origen / Origin:"]
["     "]
["Peso neto / Net weight:"]
["     "]
["Domicilio, teléfono, e-mail y persona de contacto del depósito / Address, phone number, e-mail and contact person at facility where products are held:"]
["     "]
["Referencia de tipo o modelo / Type reference or model:"]
["     "]
["Características principales / Main ratings:"]
[]
["Marca comercial / Trade mark or brand:"]
["     "]
["En conformidad con la(s) norma(s) / In conformity with the standard(s):"]
[]
["Certificación Preexistente / Pre-Existent Certification"]
[]
[]
[]
["Certificado base / Basis certificate"]
[]
["Comentarios / Comments"]

{"sheet":"Documentación adjunta","index":2,"n_rows":31,"n_cols":1,"rows_kept":31,"cut":false,"hidden":false,"merged":[]}
["4- Documentación adjunta a esta solicitud / Documentation attached to this application"]
[]
[]
[]
[]
[]
[]
[]
[]
[]
[]
[]
[]
[]
[]
[]
[]
[]
[]
[]
[]
["Otra documentación (por favor, especificar) / Other documents (please, specify):"]
[]
[]
["(*) Obligatorio para cualquier proceso de Certificación / Compulsory for any Certification process."]
["(**) Obligatorio para certificación por Marca de Conformidad / Compulsory for Mark of Conformity Certification."]
["(***) Esta información puede acelerar el proceso de certificación y/o disminuir costos de ensayo y evaluación / This information might speed up the certification process and/or decrease testing and evaluation costs."]
["(****) Sólo aplicable para productos importados / Only applicable for imported goods."]
["(##) Obligatorio para la emisión de una extensión. La documentación a emitir incluirá la nota de extensión, la copia del certificado/licencia, y la nota de seguimiento si corresponde. / Mandatory for issuing an extension. The documentation to be issued will include the extension note, the copy of the certificate / license, and the follow-up note if applicable."]
["NOTA 1: El abajo firmante expresa conformidad con los recaudos de seguridad informática utilizados por IRAM, autorizando el intercambio de información por e-correo. Además autoriza a IRAM para enviar una copia de parte o la totalidad del informe de ensayo original a laboratorios para realizar la actividad de seguimiento del producto certificado / NOTE 1: The undersigned agrees with computer security means used by IRAM, authorizing the exchange of information by e-mail and also authorizes IRAM to send a partial or total copy of the original test reports to laboratories carrying out the surveillance activities of a certified product."]
["NOTA 2: IRAM no transmitirá a terceras partes sin el consentimiento escrito del titular del certificado, la información obtenida durante el proceso de certificación, salvo que sea requerido por el organismo de gobierno que regula esta certificación o por la justicia / NOTE 2: The information obtained during the certification process will not be forwarded to third parties without the written acceptance of the certificate holder, unless it is required by the authorities or court order."]

{"sheet":"Productos gráficos (Lote)","index":3,"n_rows":96,"n_cols":16,"rows_kept":96,"cut":false,"hidden":true,"merged":[[92,1,92,14],[93,1,93,14],[94,1,94,14],[95,1,95,14],[91,1,91,14],[1,1,1,14],[4,1,4,2],[4,4,4,6],[4,8,4,10],[4,12,4,13],[90,1,90,14],[5,4,5,6],[5,8,5,10],[5,12,5,13],[7,2,7,9],[7,10,7,14]]}
["rev.0"]
[null,"Anexo - Productos gráficos Impresos. Resolución S.C.I. Nº 453/2010"]
[null,null,null,null,null,null,null,"Sistema N° 7 - Certificacion de Lotes"]
[]
[null,"Datos de extracción de muestra ",null,"Dirección",null,null,null,"Localidad",null,null,null,"Pcia.",null,null,"Laboratorio"]
[null,null,null,"Contacto",null,null,null,"E-mail",null,null,null,"Telefono"]
[]
[null,null,"Informacion necesaria para la Certificacion",null,null,null,null,null,null,null,"Características del producto y condiciones de producción"]
[null,"ITEM","Descripcion de producto              .                                                 se debe ingresar descripcion identica a la utilizada en distintos documentos de importacion -remitos, facturas, etc.-","Categoria de producto  (anexo IV disp 26)","Cantidad de Producto","Unidades del Producto (Kg, m, m², rollos, etc. o \"U\" si se trata de unidades sin medida)","Cantidad de pallets","Origen","Número de facturo o documento de compra equivalente","Empresa vendedora","Sustrato","Sistema de impresión","Máquina empleada","Tipo de tinta utilizada","Encuadernado terminado                                o                                       estado previo a su encuadernacion"]
[null,1,null,null,null,null,null,null,null,null,null,null,null,null,null,{"$f":"IF(C10=\"\",\"\",B10)","v":""}]
[null,2]
[null,3,null,null,null,null,null,null,null,null,null,null,null,null,null,""]
[null,4,null,null,null,null,null,null,null,null,null,null,null,null,null,""]
[null,5,null,null,null,null,null,null,null,null,null,null,null,null,null,""]
[null,6,null,null,null,null,null,null,null,null,null,null,null,null,null,""]
[null,7,null,null,null,null,null,null,null,null,null,null,null,null,null,""]
[null,8,null,null,null,null,null,null,null,null,null,null,null,null,null,""]
[null,9,null,null,null,null,null,null,null,null,null,null,null,null,null,""]
[null,10,null,null,null,null,null,null,null,null,null,null,null,null,null,""]
[null,11,null,null,null,null,null,null,null,null,null,null,null,null,null,""]
[null,12,null,null,null,null,null,null,null,null,null,null,null,null,null,""]
[null,13,null,null,null,null,null,null,null,null,null,null,null,null,null,""]
[null,14,null,null,null,null,null,null,null,null,null,null,null,null,null,""]
[null,15,null,null,null,null,null,null,null,null,null,null,null,null,null,""]
[null,16,null,null,null,null,null,null,null,null,null,null,null,null,null,""]
[null,17,null,null,null,null,null,null,null,null,null,null,null,null,null,""]
[null,18,null,null,null,null,null,null,null,null,null,null,null,null,null,""]
[null,19,null,null,null,null,null,null,null,null,null,null,null,null,null,""]
[null,20,null,null,null,null,null,null,null,null,null,null,null,null,null,""]
[null,21,null,null,null,null,null,null,null,null,null,null,null,null,null,""]
[null,22,null,null,null,null,null,null,null,null,null,null,null,null,null,""]
[null,23,null,null,null,null,null,null,null,null,null,null,null,null,null,""]
[null,24,null,null,null,null,null,null,null,null,null,null,null,null,null,""]
[null,25,null,null,null,null,null,null,null,null,null,null,null,null,null,""]
[null,26,null,null,null,null,null,null,null,null,null,null,null,null,null,""]
[null,27,null,null,null,null,null,null,null,null,null,null,null,null,null,""]
[null,28,null,null,null,null,null,null,null,null,null,null,null,null,null,""]
[null,29,null,null,null,null,null,null,null,null,null,null,null,null,null,""]
[null,30,null,null,null,null,null,null,null,null,null,null,null,null,null,""]
[null,31,null,null,null,null,null,null,null,null,null,null,null,null,null,""]
[null,32,null,null,null,null,null,null,null,null,null,null,null,null,null,""]
[null,33,null,null,null,null,null,null,null,null,null,null,null,null,null,""]
[null,34,null,null,null,null,null,null,null,null,null,null,null,null,null,""]
[null,35,null,null,null,null,null,null,null,null,null,null,null,null,null,""]
[null,36,null,null,null,null,null,null,null,null,null,null,null,null,null,""]
[null,37,null,null,null,null,null,null,null,null,null,null,null,null,null,""]
[null,38,null,null,null,null,null,null,null,null,null,null,null,null,null,""]
[null,39,null,null,null,null,null,null,null,null,null,null,null,null,null,""]
[null,40,null,null,null,null,null,null,null,null,null,null,null,null,null,""]
[null,41,null,null,null,null,null,null,null,null,null,null,null,null,null,""]
[null,42,null,null,null,null,null,null,null,null,null,null,null,null,null,""]
[null,43,null,null,null,null,null,null,null,null,null,null,null,null,null,""]
[null,44,null,null,null,null,null,null,null,null,null,null,null,null,null,""]
[null,45,null,null,null,null,null,null,null,null,null,null,null,null,null,""]
[null,46,null,null,null,null,null,null,null,null,null,null,null,null,null,""]
[null,47,null,null,null,null,null,null,null,null,null,null,null,null,null,""]
[null,48,null,null,null,null,null,null,null,null,null,null,null,null,null,""]
[null,49,null,null,null,null,null,null,null,null,null,null,null,null,null,""]
[null,50,null,null,null,null,null,null,null,null,null,null,null,null,null,""]
[null,51,null,null,null,null,null,null,null,null,null,null,null,null,null,""]
[null,52,null,null,null,null,null,null,null,null,null,null,null,null,null,""]
[null,53,null,null,null,null,null,null,null,null,null,null,null,null,null,""]
[null,54,null,null,null,null,null,null,null,null,null,null,null,null,null,""]
[null,55,null,null,null,null,null,null,null,null,null,null,null,null,null,""]
[null,56,null,null,null,null,null,null,null,null,null,null,null,null,null,""]
[null,57,null,null,null,null,null,null,null,null,null,null,null,null,null,""]
[null,58,null,null,null,null,null,null,null,null,null,null,null,null,null,""]
[null,59,null,null,null,null,null,null,null,null,null,null,null,null,null,""]
[null,60,null,null,null,null,null,null,null,null,null,null,null,null,null,""]
[null,61,null,null,null,null,null,null,null,null,null,null,null,null,null,""]
[null,62,null,null,null,null,null,null,null,null,null,null,null,null,null,""]
[null,63,null,null,null,null,null,null,null,null,null,null,null,null,null,""]
[null,64,null,null,null,null,null,null,null,null,null,null,null,null,null,""]
[null,65,null,null,null,null,null,null,null,null,null,null,null,null,null,{"$f":"IF(C74=\"\",\"\",B74)","v":""}]
[null,66,null,null,null,null,null,null,null,null,null,null,null,null,null,""]
[null,67,null,null,null,null,null,null,null,null,null,null,null,null,null,""]
[null,68,null,null,null,null,null,null,null,null,null,null,null,null,null,""]
[null,69,null,null,null,null,null,null,null,null,null,null,null,null,null,""]
[null,70,null,null,null,null,null,null,null,null,null,null,null,null,null,""]
[null,71,null,null,null,null,null,null,null,null,null,null,null,null,null,""]
[null,72,null,null,null,null,null,null,null,null,null,null,null,null,null,""]
[null,73,null,null,null,null,null,null,null,null,null,null,null,null,null,""]
[null,74,null,null,null,null,null,null,null,null,null,null,null,null,null,""]
[null,75,null,null,null,null,null,null,null,null,null,null,null,null,null,""]
[null,76,null,null,null,null,null,null,null,null,null,null,null,null,null,""]
[null,77,null,null,null,null,null,null,null,null,null,null,null,null,null,""]
[null,78,null,null,null,null,null,null,null,null,null,null,null,null,null,""]
[null,79,null,null,null,null,null,null,null,null,null,null,null,null,null,""]
[null,80,null,null,null,null,null,null,null,null,null,null,null,null,null,""]
[]
[]
[]
[null,"     "]
[null,"Firma y aclaración de la persona autorizada por el solicitante"]
[null,"Signature and full name of applicant’s representative"]
[null,{"$f":"\"Fecha / Date:\"","v":"Fecha / Date:"}]

{"sheet":"Ftalatos","index":4,"n_rows":65,"n_cols":10,"rows_kept":65,"cut":false,"hidden":true,"merged":[[11,0,11,7],[12,0,12,7],[13,0,13,1],[4,4,4,6],[0,0,0,7],[1,0,1,7],[2,0,2,7],[3,0,3,3],[3,4,3,7],[5,0,5,7],[6,0,6,7],[7,0,7,7],[8,0,8,7],[10,0,10,7],[16,8,17,8],[16,9,17,9],[41,0,41,7],[56,0,56,7],[43,0,43,7],[44,0,44,7],[45,0,45,7],[46,0,46,7],[47,0,47,7],[48,0,48,7],[49,0,49,7],[52,1,52,7],[53,0,53,7],[54,0,54,7],[55,0,55,7],[42,0,42,7],[63,0,63,7],[57,0,57,7],[58,0,58,7],[59,0,59,7],[60,0,60,7],[61,0,61,7],[62,0,62,7]]}
["Anexo K - Solicitud de Certificación IRAM de Tipo para Juguetes y Artículos de Puericultura según Resolución del Ministerio de Salud Nro.583/2008 y Nro. 2/2011 (Sistema de Certificación Nº 1a) Servicios y  Bienes de Consumo, Juguetes y  Ftalatos"]
["F01 \"DECLARACION DE ARTICULOS Y COMPOSICION DE PARTES A VERIFICAR\""]
["según Resolución Nº 2/2011"]
["OT Nº:  ___________________"]
["Solicitud Nº: DC/QF ___________________",null,null,null,"Lugar y Fecha: ____________________________"]
[]
["Por la presente, la empresa: ________________________________________"]
["Domicilio legal: _____________________________________________ Localidad:  ___________________________________"]
["CUIT: ______________________________________ Teléfonos: __________________fax:______________________________"]
["Correo electrónico: ___________________________________________________"]
["Nombre del Apoderado Legal de la empresa: _________________________________________________________"]
["Solicita la verificación del cumplimiento de la Resolución 583/2008 y 2/2011 del Ministerio de Salud respecto del contenido "]
[" de FTALATOS, de los artículos cuya identificación declara a continuación:"]
["Laboratorio de ensayos:"]
["Datos de extracción de muestra (Dirección,  contacto, correo electrónico y teléfono):"]
[]
["(1)","(2)","(3)","(4)","(5)","(6)","(7)","(8)","FOTO","Rtado del ensayo de Beilstein    (a ser completado por IRAM)"]
["Código de origen del artículo","Código de comercialización del artículo","Denominación del artículo","Breve descripción del artículo","Fabricante dirección país","Parte del artículo de material suceptible de ser plastificado con ftalatos","El contenido de  DBP, BBP y DEHP es menor que 0,1% m/m (art. 1º)","El contenido de DNOP, DINP y DIDP es menor que  0,1% m/m (Art. 2º)"]
[]
[]
[]
[]
[]
[]
[]
[]
[]
[]
[]
[]
[]
[]
[]
[]
[]
[]
[]
[]
[]
[]
[]
["DBP: dibutilftalato CAS No 84-74-2"]
["BBP: butilbencilftalato CAS No 85-68-7"]
["DEHP: di(2-etilhexil)ftalato CAS No117-81-7"]
["DNOP:  dinoctilftalato CAS No 117-84-0"]
["DINP: diisononilftalato CAS N028553-12-0 y 68515-48-0"]
["DIDP:  diisodecilftalato CAS 26761-40-0 y 68515-49-1"]
["Declaro ademas que las siguientes partes:"]
["(especificar parte y artículo) han sido fabricadas con material de la misma formulación."]
["Firma y aclaración del Apoderado Legal de la empresa:"]
[]
[]
[null,"La presente solicitud será tomada como declaración jurada."]
["Aclaraciones para completar el F01"]
["(1) Codigo con que el fabricante identifica su artículo"]
["(2) Codigo con el que se ingresará al país y se comercializará el artículo."]
["(3) Denominación con que se identifica el artículo Ej.: \"Little Cars\""]
["(4) Breve descripción del articulo. Ej: caja con 4 modelos de autos miniatura."]
["(5) Nombre del fabricante; dirección de la fabrica; país de origen."]
["(6) Descripción de la parte del artículo de material susceptible de ser plastificado con ftalatos. Ej: ruedas."]
["(7) Un \"SI\" en esta columna es indicativo de que la parte cumple con el art. 1º de la Resolución"]
["(8) Un \"SI\" en esta columna es indicativo de que la parte cumple con el Art. 2º de la Resolución."]
["Es obligatorio completar el campo 7 para aquellas partes fabricadas con materiales susceptibles de ser plastificados"]
["con ftalatos, y el 8 para aquellas que además de la condición anterior pueden ser introducidas en la boca."]
[null,null,null,null,null,null,null,"Hoja 1 de 1"]

{"sheet":"Seguridad en Juguetes","index":5,"n_rows":54,"n_cols":13,"rows_kept":54,"cut":false,"hidden":true,"merged":[[7,1,7,12],[8,1,8,7],[9,1,9,8],[10,1,10,12],[11,1,11,7],[12,1,12,12],[1,1,1,12],[2,1,2,12],[3,1,3,5],[4,1,4,6],[5,1,5,5],[6,1,6,12],[17,1,17,12],[18,2,18,3],[18,4,18,9],[18,11,18,12],[19,2,19,3],[19,4,19,9],[19,11,19,12],[13,1,13,5],[14,1,14,5],[15,1,15,2],[15,6,15,7],[16,1,16,2],[16,6,16,7],[22,2,22,3],[22,4,22,9],[22,11,22,12],[23,2,23,3],[23,4,23,9],[23,11,23,12],[20,2,20,3],[20,4,20,9],[20,11,20,12],[21,2,21,3],[21,4,21,9],[21,11,21,12],[26,2,26,3],[26,4,26,9],[26,11,26,12],[27,2,27,3],[27,4,27,9],[27,11,27,12],[24,2,24,3],[24,4,24,9],[24,11,24,12],[25,2,25,3],[25,4,25,9],[25,11,25,12],[30,2,30,3],[30,4,30,9],[30,11,30,12],[31,2,31,3],[31,4,31,9],[31,11,31,12],[28,2,28,3],[28,4,28,9],[28,11,28,12],[29,2,29,3],[29,4,29,9],[29,11,29,12],[34,2,34,3],[34,4,34,9],[34,11,34,12],[35,2,35,3],[35,4,35,9],[35,11,35,12],[32,2,32,3],[32,4,32,9],[32,11,32,12],[33,2,33,3],[33,4,33,9],[33,11,33,12],[38,2,38,3],[38,4,38,9],[38,11,38,12],[39,2,39,3],[39,4,39,9],[39,11,39,12],[36,2,36,3],[36,4,36,9],[36,11,36,12],[37,2,37,3],[37,4,37,9],[37,11,37,12],[42,2,42,3],[42,4,42,9],[42,11,42,12],[43,2,43,3],[43,4,43,9],[43,11,43,12],[40,2,40,3],[40,4,40,9],[40,11,40,12],[41,2,41,3],[41,4,41,9],[41,11,41,12],[46,2,46,3],[46,4,46,9],[46,11,46,12],[47,2,47,3],[47,4,47,9],[47,11,47,12],[44,2,44,3],[44,4,44,9],[44,11,44,12],[45,2,45,3],[45,4,45,9],[45,11,45,12],[51,1,52,8],[51,9,52,12],[53,1,53,9],[53,10,53,11],[48,2,48,3],[48,4,48,9],[48,11,48,12],[49,2,49,3],[49,4,49,9],[49,11,49,12]]}
[]
[null,"Anexo B con articulos  que conforman la familia de Seguridad de Juguetes según Resolución S.C.T Nº 163/2005. Servicios y Bienes de Consumo, Juguetes y Ftalatos"]
[null,"Nº de Solicitud:  DC/QJ-..................                                       O.T.:   ……………"]
[null,"Empresa:"]
[null,"Nombre de la familia:"]
[null,"Laboratorio de ensayos:"]
[null,"Datos de extracción de muestra (Dirección,  contacto, correo electrónico y teléfono):"]
[]
[null,"Rango de edad a la cual está destinada: "]
[null,"Materiales constituyentes (breve descripción):"]
[null,"Los artículos poseen pilas/radio control/transformador/doble alimentación (describe que posee):\nNota: En caso de contener transformador presentar certificado de seguridad eléctrica según resolución correspondiente.\n"]
[null,"Los artículos poseen imanes y/o piezas imantadas:"]
[null,"Ensayos (Estos campos son completados por IRAM exclusivamente) "]
[null,"Cantidad de muestras a ensayar:"]
[null,"Normas aplicables : "]
[null,"IRAM NM300-1",null,null,null,null,"IRAM NM300-2",null,null,null,"IRAM NM300-3"]
[null,"IRAM NM300-4",null,null,null,null,"IRAM NM300-5",null,null,null,"IRAM NM300-6"]
[null,"ANEXO A"]
[null,"Nº","Marca",null,"Descripción breve ",null,null,null,null,null,"Nº de artículo","FOTO"]
[null,1]
[null,2]
[null,3]
[null,4]
[null,5]
[null,6]
[null,7]
[null,8]
[null,9]
[null,10]
[null,11]
[null,12]
[null,13]
[null,14]
[null,15]
[null,16]
[null,17]
[null,18]
[null,19]
[null,20]
[null,21]
[null,22]
[null,23]
[null,24]
[null,25]
[null,26]
[null,27]
[null,28]
[null,29]
[null,30]
[null,31]
[]
[null,"Firma y aclaración de la persona autorizada por el solicitante"]
[]
[null,"Fecha:",null,null,null,null,null,null,null,null,null,null,"Hoja 1 de 1"]

{"sheet":"Detalles de autopartes","index":6,"n_rows":69,"n_cols":10,"rows_kept":69,"cut":false,"hidden":true,"merged":[[0,1,0,10],[1,1,1,4],[1,5,1,8],[1,9,1,10],[2,1,4,4],[2,5,2,8],[2,9,2,10],[3,5,3,8],[3,9,3,10],[4,5,4,8],[9,5,9,8],[9,9,9,10],[10,5,10,8],[10,9,10,10],[11,5,11,8],[11,9,11,10],[4,9,4,10],[5,1,12,4],[5,5,5,8],[5,9,5,10],[6,5,6,8],[6,9,6,10],[7,5,7,8],[7,9,7,10],[8,5,8,8],[8,9,8,10],[12,5,12,8],[12,9,12,10],[13,1,15,4],[13,5,13,8],[13,9,13,10],[14,5,14,8],[14,9,14,10],[15,5,15,8],[15,9,15,10],[20,9,20,10],[21,5,21,8],[21,9,21,10],[22,1,26,4],[22,5,22,8],[22,9,22,10],[23,5,23,8],[23,9,23,10],[24,5,24,8],[24,9,24,10],[16,1,21,4],[16,5,16,8],[16,9,16,10],[17,5,17,8],[17,9,17,10],[18,5,18,8],[18,9,18,10],[19,5,19,8],[19,9,19,10],[20,5,20,8],[25,5,25,8],[25,9,25,10],[26,5,26,8],[26,9,26,10],[27,1,28,4],[27,5,27,8],[27,9,27,10],[28,5,28,8],[28,9,28,10],[33,5,33,8],[33,9,33,10],[34,1,37,4],[34,5,34,8],[34,9,34,10],[35,5,35,8],[35,9,35,10],[29,1,30,4],[29,5,29,8],[29,9,29,10],[30,5,30,8],[30,9,30,10],[31,1,33,4],[31,5,31,8],[31,9,31,10],[32,5,32,8],[32,9,32,10],[36,5,36,8],[36,9,36,10],[37,5,37,8],[37,9,37,10],[38,1,41,4],[38,5,38,8],[38,9,38,10],[39,5,39,8],[39,9,39,10],[40,5,40,8],[40,9,40,10],[41,5,41,8],[41,9,41,10],[42,1,45,4],[42,5,42,8],[42,9,42,10],[43,5,43,8],[43,9,43,10],[44,5,44,8],[44,9,44,10],[45,5,45,8],[45,9,45,10],[46,1,48,4],[46,5,46,8],[46,9,46,10],[47,5,47,8],[47,9,47,10],[48,5,48,8],[48,9,48,10],[49,1,52,4],[49,5,49,8],[49,9,49,10],[50,5,50,8],[50,9,50,10],[51,5,51,8],[51,9,51,10],[52,5,52,8],[52,9,52,10],[57,9,57,10],[58,5,58,8],[58,9,58,10],[59,5,59,8],[59,9,59,10],[60,5,60,8],[60,9,60,10],[53,1,61,4],[53,5,53,8],[53,9,53,10],[54,5,54,8],[54,9,54,10],[55,5,55,8],[55,9,55,10],[56,5,56,8],[56,9,56,10],[57,5,57,8],[61,5,61,8],[61,9,61,10],[66,1,66,4],[66,5,66,8],[66,9,66,10],[67,1,68,4],[67,5,67,8],[67,9,67,10],[68,5,68,8],[68,9,68,10],[62,1,65,4],[62,5,62,8],[62,9,62,10],[63,5,63,8],[63,9,63,10],[64,5,64,8],[64,9,64,10],[65,5,65,8],[65,9,65,10]]}
[null,"Detalle para autopartes de reposición"]
[null,"Producto",null,null,null,"Característica",null,null,null,"Familia"]
[null,"VIDRIOS DE SEGURIDAD PARA AUTOMOTORES",null,null,null,"Vidrios templados planos/espesor (mm)",null,null,null,"VTP X,X"]
[null,null,null,null,null,"Vidrios templados curvos/espesor (mm)",null,null,null,"VTC X,X"]
[null,null,null,null,null,"Vidrios laminados/composición: espesor vidrio (mm)+ PVB +(mm) espesor vidrio (mm)",null,null,null,"VL X,X/X,X/X,X"]
[null,"ELEMENTOS DE FRICCCIÓN PARA AUTOMOTORES",null,null,null,"Formulación/Pastilla de freno/Automotor",null,null,null,"Xxx/PA/A"]
[null,null,null,null,null,"Formulación/Zapata con cinta de freno/Automotor",null,null,null,"Xxx/ZAC/A"]
[null,null,null,null,null,"Formulación/Zapata con bloque de freno/Automotor",null,null,null,"Xxx/BLO/A"]
[null,null,null,null,null,"Formulación/Pastilla de freno/Motocicleta",null,null,null,"Xxx/PA/M"]
[null,null,null,null,null,"Formulación/Zapata con cinta de freno/Motocicleta",null,null,null,"Xxx/ZAC/M"]
[null,null,null,null,null,"Formulación/Cinta de freno/Automotor",null,null,null,"Xxx/C/A"]
[null,null,null,null,null,"Formulación/Bloque de freno/Automotor",null,null,null,"Xxx/B/A"]
[null,null,null,null,null,"Formulación/Cinta de freno/Motocicleta",null,null,null,"Xxx/C/M"]
[null,"LÍQUIDOS DE FRENO PARA AUTOMOTORES",null,null,null,"Líquido de freno - Tipo 3",null,null,null,"TIPO 3"]
[null,null,null,null,null,"Líquido de freno - Tipo 4",null,null,null,"TIPO 4"]
[null,null,null,null,null,"Líquido de freno - Tipo 5",null,null,null,"TIPO 5"]
[null,"CASCOS DE SEGURIDAD PARA AUTOMOTORES",null,null,null,"Turismo/abierto",null,null,null,"TUA"]
[null,null,null,null,null,"Turismo/integral",null,null,null,"TUI"]
[null,null,null,null,null,"Turismo/mixto",null,null,null,"TUM"]
[null,null,null,null,null,"Competición/abierto",null,null,null,"COA"]
[null,null,null,null,null,"Competición//integral",null,null,null,"COI"]
[null,null,null,null,null,"Competición//mixto",null,null,null,"COM"]
[null,"ELEMENTOS DE FIJACIÓN PARA AUTOMOTORES",null,null,null,"Trabas giratoria para contenedores - simple retráctil",null,null,null,"TRA"]
[null,null,null,null,null,"Gancho para remolque",null,null,null,"GAN"]
[null,null,null,null,null,"Ojal de barra de tracción",null,null,null,"OJA"]
[null,null,null,null,null,"Perno de enganche",null,null,null,"PER"]
[null,null,null,null,null,"Plato de enganche",null,null,null,"PLA"]
[null,"BATERÍAS PLOMO-ÁCIDO PARA ARRANQUE PARA AUTOMOTORES",null,null,null,"Baterías destinadas a servicio liviano, hasta 75 Ah inclusive",null,null,null,"F1"]
[null,null,null,null,null,"Baterías destinadas a servicio servicio pesado y utilitarios, mayor a 75 Ah",null,null,null,"F2"]
[null,"ESPEJOS RETROVISORES PARA AUTOMOTORES",null,null,null,"Espejos exteriores",null,null,null,"EX"]
[null,null,null,null,null,"Espejos interiores",null,null,null,"IN"]
[null,"EXTREMOS DE DIRECCIÓN, ARTICULACIONES AXIALES Y ARTICULACIONES DE SUSPENSIÓN PARA AUTOMOTORES",null,null,null,"Articulación axil",null,null,null,"F1"]
[null,null,null,null,null,"Articulación de dirección",null,null,null,"F2"]
[null,null,null,null,null,"Articulación de suspensión, de fricción o  control de torsión, portadora de carga y de compresión",null,null,null,"F3"]
[null,"AMORTIGUADORES HIDRÁULICOS TELESCÓPICOS CONVENCIONALES PARA AUTOMOTORES",null,null,null,"Amortiguador no presurizado – sin plato",null,null,null,"F1"]
[null,null,null,null,null,"Amortiguador presurizado – sin plato",null,null,null,"F2"]
[null,null,null,null,null,"Amortiguador no presurizado – con plato",null,null,null,"F3"]
[null,null,null,null,null,"Amortiguador  presurizado – con plato",null,null,null,"F4"]
[null,"CAJAS DE DIRECCIÓN TIPO PIÑÓN Y CREMALLERA ",null,null,null,"Mecánica una salida",null,null,null,"ME1"]
[null,null,null,null,null,"Mecánica dos salidas",null,null,null,"ME2"]
[null,null,null,null,null,"Hidráulica una salida",null,null,null,"HI1"]
[null,null,null,null,null,"Hidráulica dos salidas",null,null,null,"HI2"]
[null,"SISTEMAS DE LIMPIAPARABRISAS, PARTES y ACCESORIOS PARA AUTOMOTORES",null,null,null,"Escobillas limpiaparabrisas",null,null,null,"ESC"]
[null,null,null,null,null,"Brazo del sistema limpiaparabrisas",null,null,null,"BRA"]
[null,null,null,null,null,"Motor del sistema limpiaparabrisas",null,null,null,"MOT"]
[null,null,null,null,null,"Accesorios del sistema limpiaparabrisas",null,null,null,"ACC"]
[null,"LÁMPARAS PARA AUTOMOTORES",null,null,null,"Tipo de filamento para iluminación/ tensión (V)",null,null,null,"XX/12"]
[null,null,null,null,null,"Tipo de descarga de gas para iluminación/ tensión (V)",null,null,null,"XX/12"]
[null,null,null,null,null,"Tipo de filamento para señalización/ tensión (V)",null,null,null,"XX/12"]
[null,"SISTEMAS DE ILUMINACIÓN Y SEÑALIZACIÓN PARA AUTOMOTORES",null,null,null,"Faros individuales iluminación",null,null,null,"FIIL"]
[null,null,null,null,null,"Faros individuales señalización",null,null,null,"FISE"]
[null,null,null,null,null,"Faros multifunción X funciones (cantidad)",null,null,null,"FMXIL"]
[null,null,null,null,null,"Faros multifunción X funciones (cantidad)",null,null,null,"FMXSE"]
[null,"RUEDAS PARA CAMIONES, BUSES Y VEHÍCULOS REMOLCADOS",null,null,null,"Rueda de una pieza sin cámara/ en acero",null,null,null,"RSISICA/AC"]
[null,null,null,null,null,"Rueda de una pieza sin cámara/ en aluminio",null,null,null,"RSISICA/AL"]
[null,null,null,null,null,"Rueda  de una pieza con cámara/ en acero",null,null,null,"RSICOCA/AC"]
[null,null,null,null,null,"Rueda de una pieza con cámara/ en aluminio",null,null,null,"RSICOCA/AL"]
[null,null,null,null,null,"Rueda artillera sin cámara/ en acero",null,null,null,"RARSICA/AC"]
[null,null,null,null,null,"Rueda artillera sin cámara/ en aluminio",null,null,null,"RARSICA/AL"]
[null,null,null,null,null,"Rueda artillera con cámara/ en acero",null,null,null,"RARCOCA/ AC"]
[null,null,null,null,null,"Rueda artillera con cámara/ en aluminio",null,null,null,"RARCOCA/AL"]
[null,null,null,null,null,"Rueda en mitades/ en acero",null,null,null,"RMI/AC"]
[null,"CUBIERTAS DE MOTO",null,null,null,"Ciclomotor, hasta 50 Km/h",null,null,null,"F1"]
[null,null,null,null,null,"Motocicleta, hasta 140 Km/h",null,null,null,"F2"]
[null,null,null,null,null,"Motocicleta, desde 140 hasta 190 Km/h",null,null,null,"F3"]
[null,null,null,null,null,"Motocicleta, a partir de 200 Km/h",null,null,null,"F4"]
[null,"BOMBAS DE VACÍO ( DEPRESORES) PARA SERVOFRENO PARA AUTOMOTORES",null,null,null,"Bombas de vacio",null,null,null,"BO"]
[null,"BOCINAS PARA AUTOMOTORES",null,null,null,"Eléctrica",null,null,null,"ELEC"]
[null,null,null,null,null,"Aire comprimido",null,null,null,"AIRE"]

{"sheet":"Amortiguadores F1","index":7,"n_rows":13,"n_cols":7,"rows_kept":13,"cut":false,"hidden":true,"merged":[[5,0,5,5],[0,0,0,5],[1,0,1,5],[2,0,2,5],[3,0,3,5],[4,0,4,5],[12,5,13,5],[6,1,6,5],[7,1,7,5],[8,1,8,5],[9,1,9,5],[10,0,10,5],[11,0,11,5],[12,0,13,0],[12,1,13,1],[12,2,13,2],[12,3,13,3],[12,4,13,4]]}
["Licencia - License"]
["DC-M-"]
["Familia (de acuerdo con hoja \"Detalle de Autopartes\") - Family (According with Sheet \"Detalle de autopartes\")"]
["F1"]
["Se deberán detallar los modelos incluidos en la nueva familia, en la pestaña correspondiente. Esta actualización requiere aprobación de IRAM-AITA. Serán requeridos ensayos completos para la nueva familia. Ver Hoja \"Detalle de autopartes\".\n\nIt shall be detailed the models included in the new family, on the corresponding tab. This update requires the IRAM-AITA approval. It will be required complete tests for the new family.  See Sheet \"Detalle de autopartes\"."]
["Condición - Condition",null,null,null,null,null,"M"]
["B","Reducción de Productos certificados - Certified Product Reduction"]
["I*","Extensión de productos a certificar - Product extension"]
["M","Modificación - Modification"]
["E","Existente - Existing"]
["Se deberán detallar las actualizaciones en la/s pestaña/s correspondiente a la/s familia/s a modificar. Marcar en la columna \"condición\", en cada caso: reducción, ampliación, modificación o existente. \nIt shall be detailed the updates on the tab/s related with the family/ies to modify. Mark in the column \"condition\", in each case: reduction, expansion, modification or existing."]
["* ENSAYOS A PRESENTAR: Resistencia al impacto transversal / Resistencia a la tracción"]
["Condición\nCondition","Código\nCode","Descripción\nDescription","Aplicación\nApplication","Marca\nTrademark","Origen\nOrigin"]

{"sheet":"Amortiguadores F2","index":8,"n_rows":13,"n_cols":7,"rows_kept":13,"cut":false,"hidden":true,"merged":[[5,0,5,5],[0,0,0,5],[1,0,1,5],[2,0,2,5],[3,0,3,5],[4,0,4,5],[12,5,13,5],[6,1,6,5],[7,1,7,5],[8,1,8,5],[9,1,9,5],[10,0,10,5],[11,0,11,5],[12,0,13,0],[12,1,13,1],[12,2,13,2],[12,3,13,3],[12,4,13,4]]}
["Licencia - License"]
["DC-M-"]
["Familia (de acuerdo con hoja \"Detalle de Autopartes\") - Family (According with Sheet \"Detalle de autopartes\")"]
["F2"]
["Se deberán detallar los modelos incluidos en la nueva familia, en la pestaña correspondiente. Esta actualización requiere aprobación de IRAM-AITA. Serán requeridos ensayos completos para la nueva familia. Ver Hoja \"Detalle de autopartes\".\n\nIt shall be detailed the models included in the new family, on the corresponding tab. This update requires the IRAM-AITA approval. It will be required complete tests for the new family.  See Sheet \"Detalle de autopartes\"."]
["Condición - Condition",null,null,null,null,null,"M"]
["B","Reducción de Productos certificados - Certified Product Reduction"]
["I*","Extensión de productos a certificar - Product extension"]
["M","Modificación - Modification"]
["E","Existente - Existing"]
["Se deberán detallar las actualizaciones en la/s pestaña/s correspondiente a la/s familia/s a modificar. Marcar en la columna \"condición\", en cada caso: reducción, ampliación, modificación o existente. \nIt shall be detailed the updates on the tab/s related with the family/ies to modify. Mark in the column \"condition\", in each case: reduction, expansion, modification or existing."]
["* ENSAYOS A PRESENTAR: Resistencia al impacto transversal / Resistencia a la tracción"]
["Condición\nCondition","Código\nCode","Descripción\nDescription","Aplicación\nApplication","Marca\nTrademark","Origen\nOrigin"]

{"sheet":"Amortiguadores F3","index":9,"n_rows":13,"n_cols":7,"rows_kept":13,"cut":false,"hidden":true,"merged":[[5,0,5,5],[0,0,0,5],[1,0,1,5],[2,0,2,5],[3,0,3,5],[4,0,4,5],[12,5,13,5],[6,1,6,5],[7,1,7,5],[8,1,8,5],[9,1,9,5],[10,0,10,5],[11,0,11,5],[12,0,13,0],[12,1,13,1],[12,2,13,2],[12,3,13,3],[12,4,13,4]]}
["Licencia - License"]
["DC-M-"]
["Familia (de acuerdo con hoja \"Detalle de Autopartes\") - Family (According with Sheet \"Detalle de autopartes\")"]
["F3"]
["Se deberán detallar los modelos incluidos en la nueva familia, en la pestaña correspondiente. Esta actualización requiere aprobación de IRAM-AITA. Serán requeridos ensayos completos para la nueva familia. Ver Hoja \"Detalle de autopartes\".\n\nIt shall be detailed the models included in the new family, on the corresponding tab. This update requires the IRAM-AITA approval. It will be required complete tests for the new family.  See Sheet \"Detalle de autopartes\"."]
["Condición - Condition",null,null,null,null,null,"M"]
["B","Reducción de Productos certificados - Certified Product Reduction"]
["I*","Extensión de productos a certificar - Product extension"]
["M","Modificación - Modification"]
["E","Existente - Existing"]
["Se deberán detallar las actualizaciones en la/s pestaña/s correspondiente a la/s familia/s a modificar. Marcar en la columna \"condición\", en cada caso: reducción, ampliación, modificación o existente. \nIt shall be detailed the updates on the tab/s related with the family/ies to modify. Mark in the column \"condition\", in each case: reduction, expansion, modification or existing."]
["* ENSAYOS A PRESENTAR: Resistencia al impacto transversal / Resistencia a la tracción"]
["Condición\nCondition","Código\nCode","Descripción\nDescription","Aplicación\nApplication","Marca\nTrademark","Origen\nOrigin"]

{"sheet":"Amortiguadores F4","index":10,"n_rows":13,"n_cols":7,"rows_kept":13,"cut":false,"hidden":true,"merged":[[8,1,8,5],[9,1,9,5],[10,0,10,5],[11,0,11,5],[12,0,13,0],[12,1,13,1],[12,2,13,2],[12,3,13,3],[12,4,13,4],[12,5,13,5],[5,0,5,5],[6,1,6,5],[7,1,7,5],[0,0,0,5],[1,0,1,5],[2,0,2,5],[3,0,3,5],[4,0,4,5]]}
["Licencia - License"]
["DC-M-"]
["Familia (de acuerdo con hoja \"Detalle de Autopartes\") - Family (According with Sheet \"Detalle de autopartes\")"]
["F4"]
["Se deberán detallar los modelos incluidos en la nueva familia, en la pestaña correspondiente. Esta actualización requiere aprobación de IRAM-AITA. Serán requeridos ensayos completos para la nueva familia. Ver Hoja \"Detalle de autopartes\".\n\nIt shall be detailed the models included in the new family, on the corresponding tab. This update requires the IRAM-AITA approval. It will be required complete tests for the new family.  See Sheet \"Detalle de autopartes\"."]
["Condición - Condition",null,null,null,null,null,"M"]
["B","Reducción de Productos certificados - Certified Product Reduction"]
["I*","Extensión de productos a certificar - Product extension"]
["M","Modificación - Modification"]
["E","Existente - Existing"]
["Se deberán detallar las actualizaciones en la/s pestaña/s correspondiente a la/s familia/s a modificar. Marcar en la columna \"condición\", en cada caso: reducción, ampliación, modificación o existente. \nIt shall be detailed the updates on the tab/s related with the family/ies to modify. Mark in the column \"condition\", in each case: reduction, expansion, modification or existing."]
["* ENSAYOS A PRESENTAR: Resistencia al impacto transversal / Resistencia a la tracción"]
["Condición\nCondition","Código\nCode","Descripción\nDescription","Aplicación\nApplication","Marca\nTrademark","Origen\nOrigin"]

{"sheet":"Limpiaparabrisas ESC(L)","index":11,"n_rows":13,"n_cols":7,"rows_kept":13,"cut":false,"hidden":true,"merged":[[8,1,8,5],[9,1,9,5],[10,0,10,5],[11,0,11,5],[12,0,13,0],[12,1,13,1],[12,2,13,2],[12,3,13,3],[12,4,13,4],[12,5,13,5],[5,0,5,5],[6,1,6,5],[7,1,7,5],[0,0,0,5],[1,0,1,5],[2,0,2,5],[3,0,3,5],[4,0,4,5]]}
["Licencia - License"]
["DC-M-"]
["Familia (de acuerdo con hoja \"Detalle de Autopartes\") - Family (According with Sheet \"Detalle de autopartes\")"]
["ESC"]
["Se deberán detallar los modelos incluidos en la nueva familia, en la pestaña correspondiente. Esta actualización requiere aprobación de IRAM-AITA. Serán requeridos ensayos completos para la nueva familia. Ver Hoja \"Detalle de autopartes\".\n\nIt shall be detailed the models included in the new family, on the corresponding tab. This update requires the IRAM-AITA approval. It will be required complete tests for the new family.  See Sheet \"Detalle de autopartes\"."]
["Condición - Condition",null,null,null,null,null,"M"]
["B","Reducción de Productos certificados - Certified Product Reduction"]
["I*","Extensión de productos a certificar - Product extension"]
["M","Modificación - Modification"]
["E","Existente - Existing"]
["Se deberán detallar las actualizaciones en la/s pestaña/s correspondiente a la/s familia/s a modificar. Marcar en la columna \"condición\", en cada caso: reducción, ampliación, modificación o existente. \nIt shall be detailed the updates on the tab/s related with the family/ies to modify. Mark in the column \"condition\", in each case: reduction, expansion, modification or existing."]
["* ENSAYOS A PRESENTAR: sist. mecánico: Durabilidad / escobillas: ozono y r. química"]
["Condición\nCondition","Código\nCode","Descripción\nDescription","Aplicación\nApplication","Marca\nTrademark","Origen\nOrigin"]

{"sheet":"Limpiaparabrisas ESC(P)","index":12,"n_rows":13,"n_cols":7,"rows_kept":13,"cut":false,"hidden":true,"merged":[[8,1,8,5],[9,1,9,5],[10,0,10,5],[11,0,11,5],[12,0,13,0],[12,1,13,1],[12,2,13,2],[12,3,13,3],[12,4,13,4],[12,5,13,5],[5,0,5,5],[6,1,6,5],[7,1,7,5],[0,0,0,5],[1,0,1,5],[2,0,2,5],[3,0,3,5],[4,0,4,5]]}
["Licencia - License"]
["DC-M-"]
["Familia (de acuerdo con hoja \"Detalle de Autopartes\") - Family (According with Sheet \"Detalle de autopartes\")"]
["ESC"]
["Se deberán detallar los modelos incluidos en la nueva familia, en la pestaña correspondiente. Esta actualización requiere aprobación de IRAM-AITA. Serán requeridos ensayos completos para la nueva familia. Ver Hoja \"Detalle de autopartes\".\n\nIt shall be detailed the models included in the new family, on the corresponding tab. This update requires the IRAM-AITA approval. It will be required complete tests for the new family.  See Sheet \"Detalle de autopartes\"."]
["Condición - Condition",null,null,null,null,null,"M"]
["B","Reducción de Productos certificados - Certified Product Reduction"]
["I*","Extensión de productos a certificar - Product extension"]
["M","Modificación - Modification"]
["E","Existente - Existing"]
["Se deberán detallar las actualizaciones en la/s pestaña/s correspondiente a la/s familia/s a modificar. Marcar en la columna \"condición\", en cada caso: reducción, ampliación, modificación o existente. \nIt shall be detailed the updates on the tab/s related with the family/ies to modify. Mark in the column \"condition\", in each case: reduction, expansion, modification or existing."]
["* ENSAYOS A PRESENTAR: sist. mecánico: Durabilidad / escobillas: ozono y r. química"]
["Condición\nCondition","Código\nCode","Descripción\nDescription","Aplicación\nApplication","Marca\nTrademark","Origen\nOrigin"]

{"sheet":"Limpiaparabrisas BRA(L)","index":13,"n_rows":13,"n_cols":7,"rows_kept":13,"cut":false,"hidden":true,"merged":[[8,1,8,5],[9,1,9,5],[10,0,10,5],[11,0,11,5],[12,0,13,0],[12,1,13,1],[12,2,13,2],[12,3,13,3],[12,4,13,4],[12,5,13,5],[5,0,5,5],[6,1,6,5],[7,1,7,5],[0,0,0,5],[1,0,1,5],[2,0,2,5],[3,0,3,5],[4,0,4,5]]}
["Licencia - License"]
["DC-M-"]
["Familia (de acuerdo con hoja \"Detalle de Autopartes\") - Family (According with Sheet \"Detalle de autopartes\")"]
["BRA"]
["Se deberán detallar los modelos incluidos en la nueva familia, en la pestaña correspondiente. Esta actualización requiere aprobación de IRAM-AITA. Serán requeridos ensayos completos para la nueva familia. Ver Hoja \"Detalle de autopartes\".\n\nIt shall be detailed the models included in the new family, on the corresponding tab. This update requires the IRAM-AITA approval. It will be required complete tests for the new family.  See Sheet \"Detalle de autopartes\"."]
["Condición - Condition",null,null,null,null,null,"M"]
["B","Reducción de Productos certificados - Certified Product Reduction"]
["I*","Extensión de productos a certificar - Product extension"]
["M","Modificación - Modification"]
["E","Existente - Existing"]
["Se deberán detallar las actualizaciones en la/s pestaña/s correspondiente a la/s familia/s a modificar. Marcar en la columna \"condición\", en cada caso: reducción, ampliación, modificación o existente. \nIt shall be detailed the updates on the tab/s related with the family/ies to modify. Mark in the column \"condition\", in each case: reduction, expansion, modification or existing."]
["* ENSAYOS A PRESENTAR: sist. mecánico: Durabilidad / escobillas: ozono y r. química"]
["Condición\nCondition","Código\nCode","Descripción\nDescription","Aplicación\nApplication","Marca\nTrademark","Origen\nOrigin"]

{"sheet":"Limpiaparabrisas BRA(P)","index":14,"n_rows":13,"n_cols":7,"rows_kept":13,"cut":false,"hidden":true,"merged":[[8,1,8,5],[9,1,9,5],[10,0,10,5],[11,0,11,5],[12,0,13,0],[12,1,13,1],[12,2,13,2],[12,3,13,3],[12,4,13,4],[12,5,13,5],[5,0,5,5],[6,1,6,5],[7,1,7,5],[0,0,0,5],[1,0,1,5],[2,0,2,5],[3,0,3,5],[4,0,4,5]]}
["Licencia - License"]
["DC-M-"]
["Familia (de acuerdo con hoja \"Detalle de Autopartes\") - Family (According with Sheet \"Detalle de autopartes\")"]
["BRA"]
["Se deberán detallar los modelos incluidos en la nueva familia, en la pestaña correspondiente. Esta actualización requiere aprobación de IRAM-AITA. Serán requeridos ensayos completos para la nueva familia. Ver Hoja \"Detalle de autopartes\".\n\nIt shall be detailed the models included in the new family, on the corresponding tab. This update requires the IRAM-AITA approval. It will be required complete tests for the new family.  See Sheet \"Detalle de autopartes\"."]
["Condición - Condition",null,null,null,null,null,"M"]
["B","Reducción de Productos certificados - Certified Product Reduction"]
["I*","Extensión de productos a certificar - Product extension"]
["M","Modificación - Modification"]
["E","Existente - Existing"]
["Se deberán detallar las actualizaciones en la/s pestaña/s correspondiente a la/s familia/s a modificar. Marcar en la columna \"condición\", en cada caso: reducción, ampliación, modificación o existente. \nIt shall be detailed the updates on the tab/s related with the family/ies to modify. Mark in the column \"condition\", in each case: reduction, expansion, modification or existing."]
["* ENSAYOS A PRESENTAR: sist. mecánico: Durabilidad / escobillas: ozono y r. química"]
["Condición\nCondition","Código\nCode","Descripción\nDescription","Aplicación\nApplication","Marca\nTrademark","Origen\nOrigin"]

{"sheet":"Limpiaparabrisas MOT(L)","index":15,"n_rows":13,"n_cols":7,"rows_kept":13,"cut":false,"hidden":true,"merged":[[8,1,8,5],[9,1,9,5],[10,0,10,5],[11,0,11,5],[12,0,13,0],[12,1,13,1],[12,2,13,2],[12,3,13,3],[12,4,13,4],[12,5,13,5],[5,0,5,5],[6,1,6,5],[7,1,7,5],[0,0,0,5],[1,0,1,5],[2,0,2,5],[3,0,3,5],[4,0,4,5]]}
["Licencia - License"]
["DC-M-"]
["Familia (de acuerdo con hoja \"Detalle de Autopartes\") - Family (According with Sheet \"Detalle de autopartes\")"]
["MOT"]
["Se deberán detallar los modelos incluidos en la nueva familia, en la pestaña correspondiente. Esta actualización requiere aprobación de IRAM-AITA. Serán requeridos ensayos completos para la nueva familia. Ver Hoja \"Detalle de autopartes\".\n\nIt shall be detailed the models included in the new family, on the corresponding tab. This update requires the IRAM-AITA approval. It will be required complete tests for the new family.  See Sheet \"Detalle de autopartes\"."]
["Condición - Condition",null,null,null,null,null,"M"]
["B","Reducción de Productos certificados - Certified Product Reduction"]
["I*","Extensión de productos a certificar - Product extension"]
["M","Modificación - Modification"]
["E","Existente - Existing"]
["Se deberán detallar las actualizaciones en la/s pestaña/s correspondiente a la/s familia/s a modificar. Marcar en la columna \"condición\", en cada caso: reducción, ampliación, modificación o existente. \nIt shall be detailed the updates on the tab/s related with the family/ies to modify. Mark in the column \"condition\", in each case: reduction, expansion, modification or existing."]
["* ENSAYOS A PRESENTAR: sist. mecánico: Durabilidad / escobillas: ozono y r. química"]
["Condición\nCondition","Código\nCode","Descripción\nDescription","Aplicación\nApplication","Marca\nTrademark","Origen\nOrigin"]

{"sheet":"Limpiaparabrisas MOT(P)","index":16,"n_rows":13,"n_cols":7,"rows_kept":13,"cut":false,"hidden":true,"merged":[[8,1,8,5],[9,1,9,5],[10,0,10,5],[11,0,11,5],[12,0,13,0],[12,1,13,1],[12,2,13,2],[12,3,13,3],[12,4,13,4],[12,5,13,5],[5,0,5,5],[6,1,6,5],[7,1,7,5],[0,0,0,5],[1,0,1,5],[2,0,2,5],[3,0,3,5],[4,0,4,5]]}
["Licencia - License"]
["DC-M-"]
["Familia (de acuerdo con hoja \"Detalle de Autopartes\") - Family (According with Sheet \"Detalle de autopartes\")"]
["MOT"]
["Se deberán detallar los modelos incluidos en la nueva familia, en la pestaña correspondiente. Esta actualización requiere aprobación de IRAM-AITA. Serán requeridos ensayos completos para la nueva familia. Ver Hoja \"Detalle de autopartes\".\n\nIt shall be detailed the models included in the new family, on the corresponding tab. This update requires the IRAM-AITA approval. It will be required complete tests for the new family.  See Sheet \"Detalle de autopartes\"."]
["Condición - Condition",null,null,null,null,null,"M"]
["B","Reducción de Productos certificados - Certified Product Reduction"]
["I*","Extensión de productos a certificar - Product extension"]
["M","Modificación - Modification"]
["E","Existente - Existing"]
["Se deberán detallar las actualizaciones en la/s pestaña/s correspondiente a la/s familia/s a modificar. Marcar en la columna \"condición\", en cada caso: reducción, ampliación, modificación o existente. \nIt shall be detailed the updates on the tab/s related with the family/ies to modify. Mark in the column \"condition\", in each case: reduction, expansion, modification or existing."]
["* ENSAYOS A PRESENTAR: sist. mecánico: Durabilidad / escobillas: ozono y r. química"]
["Condición\nCondition","Código\nCode","Descripción\nDescription","Aplicación\nApplication","Marca\nTrademark","Origen\nOrigin"]

{"sheet":"Limpiaparabrisas ACC(L)","index":17,"n_rows":13,"n_cols":7,"rows_kept":13,"cut":false,"hidden":true,"merged":[[8,1,8,5],[9,1,9,5],[10,0,10,5],[11,0,11,5],[12,0,13,0],[12,1,13,1],[12,2,13,2],[12,3,13,3],[12,4,13,4],[12,5,13,5],[5,0,5,5],[6,1,6,5],[7,1,7,5],[0,0,0,5],[1,0,1,5],[2,0,2,5],[3,0,3,5],[4,0,4,5]]}
["Licencia - License"]
["DC-M-"]
["Familia (de acuerdo con hoja \"Detalle de Autopartes\") - Family (According with Sheet \"Detalle de autopartes\")"]
["ACC"]
["Se deberán detallar los modelos incluidos en la nueva familia, en la pestaña correspondiente. Esta actualización requiere aprobación de IRAM-AITA. Serán requeridos ensayos completos para la nueva familia. Ver Hoja \"Detalle de autopartes\".\n\nIt shall be detailed the models included in the new family, on the corresponding tab. This update requires the IRAM-AITA approval. It will be required complete tests for the new family.  See Sheet \"Detalle de autopartes\"."]
["Condición - Condition",null,null,null,null,null,"M"]
["B","Reducción de Productos certificados - Certified Product Reduction"]
["I*","Extensión de productos a certificar - Product extension"]
["M","Modificación - Modification"]
["E","Existente - Existing"]
["Se deberán detallar las actualizaciones en la/s pestaña/s correspondiente a la/s familia/s a modificar. Marcar en la columna \"condición\", en cada caso: reducción, ampliación, modificación o existente. \nIt shall be detailed the updates on the tab/s related with the family/ies to modify. Mark in the column \"condition\", in each case: reduction, expansion, modification or existing."]
["* ENSAYOS A PRESENTAR: sist. mecánico: Durabilidad / escobillas: ozono y r. química"]
["Condición\nCondition","Código\nCode","Descripción\nDescription","Aplicación\nApplication","Marca\nTrademark","Origen\nOrigin"]

{"sheet":"Limpiaparabrisas ACC(P)","index":18,"n_rows":13,"n_cols":7,"rows_kept":13,"cut":false,"hidden":true,"merged":[[8,1,8,5],[9,1,9,5],[10,0,10,5],[11,0,11,5],[12,0,13,0],[12,1,13,1],[12,2,13,2],[12,3,13,3],[12,4,13,4],[12,5,13,5],[5,0,5,5],[6,1,6,5],[7,1,7,5],[0,0,0,5],[1,0,1,5],[2,0,2,5],[3,0,3,5],[4,0,4,5]]}
["Licencia - License"]
["DC-M-"]
["Familia (de acuerdo con hoja \"Detalle de Autopartes\") - Family (According with Sheet \"Detalle de autopartes\")"]
["ACC"]
["Se deberán detallar los modelos incluidos en la nueva familia, en la pestaña correspondiente. Esta actualización requiere aprobación de IRAM-AITA. Serán requeridos ensayos completos para la nueva familia. Ver Hoja \"Detalle de autopartes\".\n\nIt shall be detailed the models included in the new family, on the corresponding tab. This update requires the IRAM-AITA approval. It will be required complete tests for the new family.  See Sheet \"Detalle de autopartes\"."]
["Condición - Condition",null,null,null,null,null,"M"]
["B","Reducción de Productos certificados - Certified Product Reduction"]
["I*","Extensión de productos a certificar - Product extension"]
["M","Modificación - Modification"]
["E","Existente - Existing"]
["Se deberán detallar las actualizaciones en la/s pestaña/s correspondiente a la/s familia/s a modificar. Marcar en la columna \"condición\", en cada caso: reducción, ampliación, modificación o existente. \nIt shall be detailed the updates on the tab/s related with the family/ies to modify. Mark in the column \"condition\", in each case: reduction, expansion, modification or existing."]
["* ENSAYOS A PRESENTAR: sist. mecánico: Durabilidad / escobillas: ozono y r. química"]
["Condición\nCondition","Código\nCode","Descripción\nDescription","Aplicación\nApplication","Marca\nTrademark","Origen\nOrigin"]

{"sheet":"Ruedas RSISICA-AC","index":19,"n_rows":13,"n_cols":7,"rows_kept":13,"cut":false,"hidden":true,"merged":[[11,0,11,5],[12,0,13,0],[12,1,13,1],[12,2,13,2],[12,3,13,3],[12,4,13,4],[12,5,13,5],[0,0,0,5],[1,0,1,5],[2,0,2,5],[3,0,3,5],[4,0,4,5],[10,0,10,5],[5,0,5,5],[6,1,6,5],[7,1,7,5],[8,1,8,5],[9,1,9,5]]}
["Licencia - License"]
["DC-M-"]
["Familia (de acuerdo con hoja \"Detalle de Autopartes\") - Family (According with Sheet \"Detalle de autopartes\")"]
["RSISICA-AC"]
["Se deberán detallar los modelos incluidos en la nueva familia, en la pestaña correspondiente. Esta actualización requiere aprobación de IRAM-AITA. Serán requeridos ensayos completos para la nueva familia. Ver Hoja \"Detalle de autopartes\".\n\nIt shall be detailed the models included in the new family, on the corresponding tab. This update requires the IRAM-AITA approval. It will be required complete tests for the new family.  See Sheet \"Detalle de autopartes\"."]
["Condición - Condition",null,null,null,null,null,"M"]
["B","Reducción de Productos certificados - Certified Product Reduction"]
["I*","Extensión de productos a certificar - Product extension"]
["M","Modificación - Modification"]
["E","Existente - Existing"]
["Se deberán detallar las actualizaciones en la/s pestaña/s correspondiente a la/s familia/s a modificar. Marcar en la columna \"condición\", en cada caso: reducción, ampliación, modificación o existente. \nIt shall be detailed the updates on the tab/s related with the family/ies to modify. Mark in the column \"condition\", in each case: reduction, expansion, modification or existing."]
["* ENSAYOS A PRESENTAR: Hermeticidad  / Fatiga por flexión Rotativa"]
["Condición\nCondition","Código\nCode","Descripción\nDescription","Aplicación\nApplication","Marca\nTrademark","Origen\nOrigin"]

{"sheet":"Ruedas RSISICA-AL","index":20,"n_rows":13,"n_cols":7,"rows_kept":13,"cut":false,"hidden":true,"merged":[[11,0,11,5],[12,0,13,0],[12,1,13,1],[12,2,13,2],[12,3,13,3],[12,4,13,4],[12,5,13,5],[0,0,0,5],[1,0,1,5],[2,0,2,5],[3,0,3,5],[4,0,4,5],[10,0,10,5],[5,0,5,5],[6,1,6,5],[7,1,7,5],[8,1,8,5],[9,1,9,5]]}
["Licencia - License"]
["DC-M-"]
["Familia (de acuerdo con hoja \"Detalle de Autopartes\") - Family (According with Sheet \"Detalle de autopartes\")"]
["RSISICA-AL"]
["Se deberán detallar los modelos incluidos en la nueva familia, en la pestaña correspondiente. Esta actualización requiere aprobación de IRAM-AITA. Serán requeridos ensayos completos para la nueva familia. Ver Hoja \"Detalle de autopartes\".\n\nIt shall be detailed the models included in the new family, on the corresponding tab. This update requires the IRAM-AITA approval. It will be required complete tests for the new family.  See Sheet \"Detalle de autopartes\"."]
["Condición - Condition",null,null,null,null,null,"M"]
["B","Reducción de Productos certificados - Certified Product Reduction"]
["I*","Extensión de productos a certificar - Product extension"]
["M","Modificación - Modification"]
["E","Existente - Existing"]
["Se deberán detallar las actualizaciones en la/s pestaña/s correspondiente a la/s familia/s a modificar. Marcar en la columna \"condición\", en cada caso: reducción, ampliación, modificación o existente. \nIt shall be detailed the updates on the tab/s related with the family/ies to modify. Mark in the column \"condition\", in each case: reduction, expansion, modification or existing."]
["* ENSAYOS A PRESENTAR: Hermeticidad  / Fatiga por flexión Rotativa"]
["Condición\nCondition","Código\nCode","Descripción\nDescription","Aplicación\nApplication","Marca\nTrademark","Origen\nOrigin"]

{"sheet":"Ruedas RSICOCA-AC","index":21,"n_rows":13,"n_cols":7,"rows_kept":13,"cut":false,"hidden":true,"merged":[[11,0,11,5],[12,0,13,0],[12,1,13,1],[12,2,13,2],[12,3,13,3],[12,4,13,4],[12,5,13,5],[0,0,0,5],[1,0,1,5],[2,0,2,5],[3,0,3,5],[4,0,4,5],[10,0,10,5],[5,0,5,5],[6,1,6,5],[7,1,7,5],[8,1,8,5],[9,1,9,5]]}
["Licencia - License"]
["DC-M-"]
["Familia (de acuerdo con hoja \"Detalle de Autopartes\") - Family (According with Sheet \"Detalle de autopartes\")"]
["RSICOCA-AC"]
["Se deberán detallar los modelos incluidos en la nueva familia, en la pestaña correspondiente. Esta actualización requiere aprobación de IRAM-AITA. Serán requeridos ensayos completos para la nueva familia. Ver Hoja \"Detalle de autopartes\".\n\nIt shall be detailed the models included in the new family, on the corresponding tab. This update requires the IRAM-AITA approval. It will be required complete tests for the new family.  See Sheet \"Detalle de autopartes\"."]
["Condición - Condition",null,null,null,null,null,"M"]
["B","Reducción de Productos certificados - Certified Product Reduction"]
["I*","Extensión de productos a certificar - Product extension"]
["M","Modificación - Modification"]
["E","Existente - Existing"]
["Se deberán detallar las actualizaciones en la/s pestaña/s correspondiente a la/s familia/s a modificar. Marcar en la columna \"condición\", en cada caso: reducción, ampliación, modificación o existente. \nIt shall be detailed the updates on the tab/s related with the family/ies to modify. Mark in the column \"condition\", in each case: reduction, expansion, modification or existing."]
["* ENSAYOS A PRESENTAR: Hermeticidad  / Fatiga por flexión Rotativa"]
["Condición\nCondition","Código\nCode","Descripción\nDescription","Aplicación\nApplication","Marca\nTrademark","Origen\nOrigin"]

{"sheet":"Ruedas RSICOCA-AL","index":22,"n_rows":13,"n_cols":7,"rows_kept":13,"cut":false,"hidden":true,"merged":[[11,0,11,5],[12,0,13,0],[12,1,13,1],[12,2,13,2],[12,3,13,3],[12,4,13,4],[12,5,13,5],[0,0,0,5],[1,0,1,5],[2,0,2,5],[3,0,3,5],[4,0,4,5],[10,0,10,5],[5,0,5,5],[6,1,6,5],[7,1,7,5],[8,1,8,5],[9,1,9,5]]}
["Licencia - License"]
["DC-M-"]
["Familia (de acuerdo con hoja \"Detalle de Autopartes\") - Family (According with Sheet \"Detalle de autopartes\")"]
["RSICOCA-AL"]
["Se deberán detallar los modelos incluidos en la nueva familia, en la pestaña correspondiente. Esta actualización requiere aprobación de IRAM-AITA. Serán requeridos ensayos completos para la nueva familia. Ver Hoja \"Detalle de autopartes\".\n\nIt shall be detailed the models included in the new family, on the corresponding tab. This update requires the IRAM-AITA approval. It will be required complete tests for the new family.  See Sheet \"Detalle de autopartes\"."]
["Condición - Condition",null,null,null,null,null,"M"]
["B","Reducción de Productos certificados - Certified Product Reduction"]
["I*","Extensión de productos a certificar - Product extension"]
["M","Modificación - Modification"]
["E","Existente - Existing"]
["Se deberán detallar las actualizaciones en la/s pestaña/s correspondiente a la/s familia/s a modificar. Marcar en la columna \"condición\", en cada caso: reducción, ampliación, modificación o existente. \nIt shall be detailed the updates on the tab/s related with the family/ies to modify. Mark in the column \"condition\", in each case: reduction, expansion, modification or existing."]
["* ENSAYOS A PRESENTAR: Hermeticidad  / Fatiga por flexión Rotativa"]
["Condición\nCondition","Código\nCode","Descripción\nDescription","Aplicación\nApplication","Marca\nTrademark","Origen\nOrigin"]

{"sheet":"Ruedas RARSICA-AC","index":23,"n_rows":13,"n_cols":7,"rows_kept":13,"cut":false,"hidden":true,"merged":[[11,0,11,5],[12,0,13,0],[12,1,13,1],[12,2,13,2],[12,3,13,3],[12,4,13,4],[12,5,13,5],[0,0,0,5],[1,0,1,5],[2,0,2,5],[3,0,3,5],[4,0,4,5],[10,0,10,5],[5,0,5,5],[6,1,6,5],[7,1,7,5],[8,1,8,5],[9,1,9,5]]}
["Licencia - License"]
["DC-M-"]
["Familia (de acuerdo con hoja \"Detalle de Autopartes\") - Family (According with Sheet \"Detalle de autopartes\")"]
["RARSICA-AC"]
["Se deberán detallar los modelos incluidos en la nueva familia, en la pestaña correspondiente. Esta actualización requiere aprobación de IRAM-AITA. Serán requeridos ensayos completos para la nueva familia. Ver Hoja \"Detalle de autopartes\".\n\nIt shall be detailed the models included in the new family, on the corresponding tab. This update requires the IRAM-AITA approval. It will be required complete tests for the new family.  See Sheet \"Detalle de autopartes\"."]
["Condición - Condition",null,null,null,null,null,"M"]
["B","Reducción de Productos certificados - Certified Product Reduction"]
["I*","Extensión de productos a certificar - Product extension"]
["M","Modificación - Modification"]
["E","Existente - Existing"]
["Se deberán detallar las actualizaciones en la/s pestaña/s correspondiente a la/s familia/s a modificar. Marcar en la columna \"condición\", en cada caso: reducción, ampliación, modificación o existente. \nIt shall be detailed the updates on the tab/s related with the family/ies to modify. Mark in the column \"condition\", in each case: reduction, expansion, modification or existing."]
["* ENSAYOS A PRESENTAR: Hermeticidad  / Fatiga por flexión Rotativa"]
["Condición\nCondition","Código\nCode","Descripción\nDescription","Aplicación\nApplication","Marca\nTrademark","Origen\nOrigin"]

{"sheet":"Ruedas RARSICA-AL","index":24,"n_rows":13,"n_cols":7,"rows_kept":13,"cut":false,"hidden":true,"merged":[[11,0,11,5],[12,0,13,0],[12,1,13,1],[12,2,13,2],[12,3,13,3],[12,4,13,4],[12,5,13,5],[0,0,0,5],[1,0,1,5],[2,0,2,5],[3,0,3,5],[4,0,4,5],[10,0,10,5],[5,0,5,5],[6,1,6,5],[7,1,7,5],[8,1,8,5],[9,1,9,5]]}
["Licencia - License"]
["DC-M-"]
["Familia (de acuerdo con hoja \"Detalle de Autopartes\") - Family (According with Sheet \"Detalle de autopartes\")"]
["RARSICA-AL"]
["Se deberán detallar los modelos incluidos en la nueva familia, en la pestaña correspondiente. Esta actualización requiere aprobación de IRAM-AITA. Serán requeridos ensayos completos para la nueva familia. Ver Hoja \"Detalle de autopartes\".\n\nIt shall be detailed the models included in the new family, on the corresponding tab. This update requires the IRAM-AITA approval. It will be required complete tests for the new family.  See Sheet \"Detalle de autopartes\"."]
["Condición - Condition",null,null,null,null,null,"M"]
["B","Reducción de Productos certificados - Certified Product Reduction"]
["I*","Extensión de productos a certificar - Product extension"]
["M","Modificación - Modification"]
["E","Existente - Existing"]
["Se deberán detallar las actualizaciones en la/s pestaña/s correspondiente a la/s familia/s a modificar. Marcar en la columna \"condición\", en cada caso: reducción, ampliación, modificación o existente. \nIt shall be detailed the updates on the tab/s related with the family/ies to modify. Mark in the column \"condition\", in each case: reduction, expansion, modification or existing."]
["* ENSAYOS A PRESENTAR: Hermeticidad  / Fatiga por flexión Rotativa"]
["Condición\nCondition","Código\nCode","Descripción\nDescription","Aplicación\nApplication","Marca\nTrademark","Origen\nOrigin"]

{"sheet":"Ruedas RARCOCA-AC","index":25,"n_rows":13,"n_cols":7,"rows_kept":13,"cut":false,"hidden":true,"merged":[[11,0,11,5],[12,0,13,0],[12,1,13,1],[12,2,13,2],[12,3,13,3],[12,4,13,4],[12,5,13,5],[0,0,0,5],[1,0,1,5],[2,0,2,5],[3,0,3,5],[4,0,4,5],[10,0,10,5],[5,0,5,5],[6,1,6,5],[7,1,7,5],[8,1,8,5],[9,1,9,5]]}
["Licencia - License"]
["DC-M-"]
["Familia (de acuerdo con hoja \"Detalle de Autopartes\") - Family (According with Sheet \"Detalle de autopartes\")"]
["RARCOCA-AC"]
["Se deberán detallar los modelos incluidos en la nueva familia, en la pestaña correspondiente. Esta actualización requiere aprobación de IRAM-AITA. Serán requeridos ensayos completos para la nueva familia. Ver Hoja \"Detalle de autopartes\".\n\nIt shall be detailed the models included in the new family, on the corresponding tab. This update requires the IRAM-AITA approval. It will be required complete tests for the new family.  See Sheet \"Detalle de autopartes\"."]
["Condición - Condition",null,null,null,null,null,"M"]
["B","Reducción de Productos certificados - Certified Product Reduction"]
["I*","Extensión de productos a certificar - Product extension"]
["M","Modificación - Modification"]
["E","Existente - Existing"]
["Se deberán detallar las actualizaciones en la/s pestaña/s correspondiente a la/s familia/s a modificar. Marcar en la columna \"condición\", en cada caso: reducción, ampliación, modificación o existente. \nIt shall be detailed the updates on the tab/s related with the family/ies to modify. Mark in the column \"condition\", in each case: reduction, expansion, modification or existing."]
["* ENSAYOS A PRESENTAR: Hermeticidad  / Fatiga por flexión Rotativa"]
["Condición\nCondition","Código\nCode","Descripción\nDescription","Aplicación\nApplication","Marca\nTrademark","Origen\nOrigin"]

{"sheet":"Ruedas RARCOCA-AL","index":26,"n_rows":13,"n_cols":7,"rows_kept":13,"cut":false,"hidden":true,"merged":[[11,0,11,5],[12,0,13,0],[12,1,13,1],[12,2,13,2],[12,3,13,3],[12,4,13,4],[12,5,13,5],[0,0,0,5],[1,0,1,5],[2,0,2,5],[3,0,3,5],[4,0,4,5],[10,0,10,5],[5,0,5,5],[6,1,6,5],[7,1,7,5],[8,1,8,5],[9,1,9,5]]}
["Licencia - License"]
["DC-M-"]
["Familia (de acuerdo con hoja \"Detalle de Autopartes\") - Family (According with Sheet \"Detalle de autopartes\")"]
["RARCOCA-AL"]
["Se deberán detallar los modelos incluidos en la nueva familia, en la pestaña correspondiente. Esta actualización requiere aprobación de IRAM-AITA. Serán requeridos ensayos completos para la nueva familia. Ver Hoja \"Detalle de autopartes\".\n\nIt shall be detailed the models included in the new family, on the corresponding tab. This update requires the IRAM-AITA approval. It will be required complete tests for the new family.  See Sheet \"Detalle de autopartes\"."]
["Condición - Condition",null,null,null,null,null,"M"]
["B","Reducción de Productos certificados - Certified Product Reduction"]
["I*","Extensión de productos a certificar - Product extension"]
["M","Modificación - Modification"]
["E","Existente - Existing"]
["Se deberán detallar las actualizaciones en la/s pestaña/s correspondiente a la/s familia/s a modificar. Marcar en la columna \"condición\", en cada caso: reducción, ampliación, modificación o existente. \nIt shall be detailed the updates on the tab/s related with the family/ies to modify. Mark in the column \"condition\", in each case: reduction, expansion, modification or existing."]
["* ENSAYOS A PRESENTAR: Hermeticidad  / Fatiga por flexión Rotativa"]
["Condición\nCondition","Código\nCode","Descripción\nDescription","Aplicación\nApplication","Marca\nTrademark","Origen\nOrigin"]

{"sheet":"Ruedas RMI-AC","index":27,"n_rows":13,"n_cols":7,"rows_kept":13,"cut":false,"hidden":true,"merged":[[11,0,11,5],[12,0,13,0],[12,1,13,1],[12,2,13,2],[12,3,13,3],[12,4,13,4],[12,5,13,5],[0,0,0,5],[1,0,1,5],[2,0,2,5],[3,0,3,5],[4,0,4,5],[10,0,10,5],[5,0,5,5],[6,1,6,5],[7,1,7,5],[8,1,8,5],[9,1,9,5]]}
["Licencia - License"]
["DC-M-"]
["Familia (de acuerdo con hoja \"Detalle de Autopartes\") - Family (According with Sheet \"Detalle de autopartes\")"]
["RMI-AC"]
["Se deberán detallar los modelos incluidos en la nueva familia, en la pestaña correspondiente. Esta actualización requiere aprobación de IRAM-AITA. Serán requeridos ensayos completos para la nueva familia. Ver Hoja \"Detalle de autopartes\".\n\nIt shall be detailed the models included in the new family, on the corresponding tab. This update requires the IRAM-AITA approval. It will be required complete tests for the new family.  See Sheet \"Detalle de autopartes\"."]
["Condición - Condition",null,null,null,null,null,"M"]
["B","Reducción de Productos certificados - Certified Product Reduction"]
["I*","Extensión de productos a certificar - Product extension"]
["M","Modificación - Modification"]
["E","Existente - Existing"]
["Se deberán detallar las actualizaciones en la/s pestaña/s correspondiente a la/s familia/s a modificar. Marcar en la columna \"condición\", en cada caso: reducción, ampliación, modificación o existente. \nIt shall be detailed the updates on the tab/s related with the family/ies to modify. Mark in the column \"condition\", in each case: reduction, expansion, modification or existing."]
["* ENSAYOS A PRESENTAR: Hermeticidad  / Fatiga por flexión Rotativa"]
["Condición\nCondition","Código\nCode","Descripción\nDescription","Aplicación\nApplication","Marca\nTrademark","Origen\nOrigin"]

{"sheet":"Fricción XXX-PA-A","index":28,"n_rows":13,"n_cols":7,"rows_kept":13,"cut":false,"hidden":true,"merged":[[8,1,8,5],[9,1,9,5],[10,0,10,5],[11,0,11,5],[12,0,13,0],[12,1,13,1],[12,2,13,2],[12,3,13,3],[12,4,13,4],[12,5,13,5],[5,0,5,5],[6,1,6,5],[7,1,7,5],[0,0,0,5],[1,0,1,5],[2,0,2,5],[3,0,3,5],[4,0,4,5]]}
["Licencia - License"]
["DC-M-"]
["Familia (de acuerdo con hoja \"Detalle de Autopartes\") - Family (According with Sheet \"Detalle de autopartes\")"]
["XXX-PA-A"]
["Se deberán detallar los modelos incluidos en la nueva familia, en la pestaña correspondiente. Esta actualización requiere aprobación de IRAM-AITA. Serán requeridos ensayos completos para la nueva familia. Ver Hoja \"Detalle de autopartes\".\n\nIt shall be detailed the models included in the new family, on the corresponding tab. This update requires the IRAM-AITA approval. It will be required complete tests for the new family.  See Sheet \"Detalle de autopartes\"."]
["Condición - Condition",null,null,null,null,null,"M"]
["B","Reducción de Productos certificados - Certified Product Reduction"]
["I*","Extensión de productos a certificar - Product extension"]
["M","Modificación - Modification"]
["E","Existente - Existing"]
["Se deberán detallar las actualizaciones en la/s pestaña/s correspondiente a la/s familia/s a modificar. Marcar en la columna \"condición\", en cada caso: reducción, ampliación, modificación o existente. \nIt shall be detailed the updates on the tab/s related with the family/ies to modify. Mark in the column \"condition\", in each case: reduction, expansion, modification or existing."]
["* ENSAYOS A PRESENTAR: Clasificación del material de fricción / Resistencia al cizallamiento "]
["Condición\nCondition","Código\nCode","Descripción\nDescription","Aplicación\nApplication","Marca\nTrademark","Origen\nOrigin"]

{"sheet":"Fricción XXX-ZAC-A","index":29,"n_rows":13,"n_cols":7,"rows_kept":13,"cut":false,"hidden":true,"merged":[[8,1,8,5],[9,1,9,5],[10,0,10,5],[11,0,11,5],[12,0,13,0],[12,1,13,1],[12,2,13,2],[12,3,13,3],[12,4,13,4],[12,5,13,5],[5,0,5,5],[6,1,6,5],[7,1,7,5],[0,0,0,5],[1,0,1,5],[2,0,2,5],[3,0,3,5],[4,0,4,5]]}
["Licencia - License"]
["DC-M-"]
["Familia (de acuerdo con hoja \"Detalle de Autopartes\") - Family (According with Sheet \"Detalle de autopartes\")"]
["XXX-ZAC-A"]
["Se deberán detallar los modelos incluidos en la nueva familia, en la pestaña correspondiente. Esta actualización requiere aprobación de IRAM-AITA. Serán requeridos ensayos completos para la nueva familia. Ver Hoja \"Detalle de autopartes\".\n\nIt shall be detailed the models included in the new family, on the corresponding tab. This update requires the IRAM-AITA approval. It will be required complete tests for the new family.  See Sheet \"Detalle de autopartes\"."]
["Condición - Condition",null,null,null,null,null,"M"]
["B","Reducción de Productos certificados - Certified Product Reduction"]
["I*","Extensión de productos a certificar - Product extension"]
["M","Modificación - Modification"]
["E","Existente - Existing"]
["Se deberán detallar las actualizaciones en la/s pestaña/s correspondiente a la/s familia/s a modificar. Marcar en la columna \"condición\", en cada caso: reducción, ampliación, modificación o existente. \nIt shall be detailed the updates on the tab/s related with the family/ies to modify. Mark in the column \"condition\", in each case: reduction, expansion, modification or existing."]
["* ENSAYOS A PRESENTAR: Clasificación del material de fricción / Resistencia al cizallamiento "]
["Condición\nCondition","Código\nCode","Descripción\nDescription","Aplicación\nApplication","Marca\nTrademark","Origen\nOrigin"]

{"sheet":"Fricción XXX-BLO-A","index":30,"n_rows":13,"n_cols":7,"rows_kept":13,"cut":false,"hidden":true,"merged":[[8,1,8,5],[9,1,9,5],[10,0,10,5],[11,0,11,5],[12,0,13,0],[12,1,13,1],[12,2,13,2],[12,3,13,3],[12,4,13,4],[12,5,13,5],[5,0,5,5],[6,1,6,5],[7,1,7,5],[0,0,0,5],[1,0,1,5],[2,0,2,5],[3,0,3,5],[4,0,4,5]]}
["Licencia - License"]
["DC-M-"]
["Familia (de acuerdo con hoja \"Detalle de Autopartes\") - Family (According with Sheet \"Detalle de autopartes\")"]
["XXX-BLO-A"]
["Se deberán detallar los modelos incluidos en la nueva familia, en la pestaña correspondiente. Esta actualización requiere aprobación de IRAM-AITA. Serán requeridos ensayos completos para la nueva familia. Ver Hoja \"Detalle de autopartes\".\n\nIt shall be detailed the models included in the new family, on the corresponding tab. This update requires the IRAM-AITA approval. It will be required complete tests for the new family.  See Sheet \"Detalle de autopartes\"."]
["Condición - Condition",null,null,null,null,null,"M"]
["B","Reducción de Productos certificados - Certified Product Reduction"]
["I*","Extensión de productos a certificar - Product extension"]
["M","Modificación - Modification"]
["E","Existente - Existing"]
["Se deberán detallar las actualizaciones en la/s pestaña/s correspondiente a la/s familia/s a modificar. Marcar en la columna \"condición\", en cada caso: reducción, ampliación, modificación o existente. \nIt shall be detailed the updates on the tab/s related with the family/ies to modify. Mark in the column \"condition\", in each case: reduction, expansion, modification or existing."]
["* ENSAYOS A PRESENTAR: Clasificación del material de fricción / Resistencia al cizallamiento "]
["Condición\nCondition","Código\nCode","Descripción\nDescription","Aplicación\nApplication","Marca\nTrademark","Origen\nOrigin"]

{"sheet":"Fricción XXX-PA-M","index":31,"n_rows":13,"n_cols":7,"rows_kept":13,"cut":false,"hidden":true,"merged":[[8,1,8,5],[9,1,9,5],[10,0,10,5],[11,0,11,5],[12,0,13,0],[12,1,13,1],[12,2,13,2],[12,3,13,3],[12,4,13,4],[12,5,13,5],[5,0,5,5],[6,1,6,5],[7,1,7,5],[0,0,0,5],[1,0,1,5],[2,0,2,5],[3,0,3,5],[4,0,4,5]]}
["Licencia - License"]
["DC-M-"]
["Familia (de acuerdo con hoja \"Detalle de Autopartes\") - Family (According with Sheet \"Detalle de autopartes\")"]
["XXX-PA-M"]
["Se deberán detallar los modelos incluidos en la nueva familia, en la pestaña correspondiente. Esta actualización requiere aprobación de IRAM-AITA. Serán requeridos ensayos completos para la nueva familia. Ver Hoja \"Detalle de autopartes\".\n\nIt shall be detailed the models included in the new family, on the corresponding tab. This update requires the IRAM-AITA approval. It will be required complete tests for the new family.  See Sheet \"Detalle de autopartes\"."]
["Condición - Condition",null,null,null,null,null,"M"]
["B","Reducción de Productos certificados - Certified Product Reduction"]
["I*","Extensión de productos a certificar - Product extension"]
["M","Modificación - Modification"]
["E","Existente - Existing"]
["Se deberán detallar las actualizaciones en la/s pestaña/s correspondiente a la/s familia/s a modificar. Marcar en la columna \"condición\", en cada caso: reducción, ampliación, modificación o existente. \nIt shall be detailed the updates on the tab/s related with the family/ies to modify. Mark in the column \"condition\", in each case: reduction, expansion, modification or existing."]
["* ENSAYOS A PRESENTAR: Clasificación del material de fricción / Resistencia al cizallamiento "]
["Condición\nCondition","Código\nCode","Descripción\nDescription","Aplicación\nApplication","Marca\nTrademark","Origen\nOrigin"]

{"sheet":"Fricción XXX-ZAC-M","index":32,"n_rows":13,"n_cols":7,"rows_kept":13,"cut":false,"hidden":true,"merged":[[8,1,8,5],[9,1,9,5],[10,0,10,5],[11,0,11,5],[12,0,13,0],[12,1,13,1],[12,2,13,2],[12,3,13,3],[12,4,13,4],[12,5,13,5],[5,0,5,5],[6,1,6,5],[7,1,7,5],[0,0,0,5],[1,0,1,5],[2,0,2,5],[3,0,3,5],[4,0,4,5]]}
["Licencia - License"]
["DC-M-"]
["Familia (de acuerdo con hoja \"Detalle de Autopartes\") - Family (According with Sheet \"Detalle de autopartes\")"]
["XXX-ZAC-M"]
["Se deberán detallar los modelos incluidos en la nueva familia, en la pestaña correspondiente. Esta actualización requiere aprobación de IRAM-AITA. Serán requeridos ensayos completos para la nueva familia. Ver Hoja \"Detalle de autopartes\".\n\nIt shall be detailed the models included in the new family, on the corresponding tab. This update requires the IRAM-AITA approval. It will be required complete tests for the new family.  See Sheet \"Detalle de autopartes\"."]
["Condición - Condition",null,null,null,null,null,"M"]
["B","Reducción de Productos certificados - Certified Product Reduction"]
["I*","Extensión de productos a certificar - Product extension"]
["M","Modificación - Modification"]
["E","Existente - Existing"]
["Se deberán detallar las actualizaciones en la/s pestaña/s correspondiente a la/s familia/s a modificar. Marcar en la columna \"condición\", en cada caso: reducción, ampliación, modificación o existente. \nIt shall be detailed the updates on the tab/s related with the family/ies to modify. Mark in the column \"condition\", in each case: reduction, expansion, modification or existing."]
["* ENSAYOS A PRESENTAR: Clasificación del material de fricción / Resistencia al cizallamiento "]
["Condición\nCondition","Código\nCode","Descripción\nDescription","Aplicación\nApplication","Marca\nTrademark","Origen\nOrigin"]

{"sheet":"Fricción XXX-C-A","index":33,"n_rows":13,"n_cols":7,"rows_kept":13,"cut":false,"hidden":true,"merged":[[8,1,8,5],[9,1,9,5],[10,0,10,5],[11,0,11,5],[12,0,13,0],[12,1,13,1],[12,2,13,2],[12,3,13,3],[12,4,13,4],[12,5,13,5],[5,0,5,5],[6,1,6,5],[7,1,7,5],[0,0,0,5],[1,0,1,5],[2,0,2,5],[3,0,3,5],[4,0,4,5]]}
["Licencia - License"]
["DC-M-"]
["Familia (de acuerdo con hoja \"Detalle de Autopartes\") - Family (According with Sheet \"Detalle de autopartes\")"]
["XXX-C-A"]
["Se deberán detallar los modelos incluidos en la nueva familia, en la pestaña correspondiente. Esta actualización requiere aprobación de IRAM-AITA. Serán requeridos ensayos completos para la nueva familia. Ver Hoja \"Detalle de autopartes\".\n\nIt shall be detailed the models included in the new family, on the corresponding tab. This update requires the IRAM-AITA approval. It will be required complete tests for the new family.  See Sheet \"Detalle de autopartes\"."]
["Condición - Condition",null,null,null,null,null,"M"]
["B","Reducción de Productos certificados - Certified Product Reduction"]
["I*","Extensión de productos a certificar - Product extension"]
["M","Modificación - Modification"]
["E","Existente - Existing"]
["Se deberán detallar las actualizaciones en la/s pestaña/s correspondiente a la/s familia/s a modificar. Marcar en la columna \"condición\", en cada caso: reducción, ampliación, modificación o existente. \nIt shall be detailed the updates on the tab/s related with the family/ies to modify. Mark in the column \"condition\", in each case: reduction, expansion, modification or existing."]
["* ENSAYOS A PRESENTAR: Clasificación del material de fricción / Resistencia al cizallamiento "]
["Condición\nCondition","Código\nCode","Descripción\nDescription","Aplicación\nApplication","Marca\nTrademark","Origen\nOrigin"]

{"sheet":"Fricción XXX-B-A","index":34,"n_rows":13,"n_cols":7,"rows_kept":13,"cut":false,"hidden":true,"merged":[[8,1,8,5],[9,1,9,5],[10,0,10,5],[11,0,11,5],[12,0,13,0],[12,1,13,1],[12,2,13,2],[12,3,13,3],[12,4,13,4],[12,5,13,5],[5,0,5,5],[6,1,6,5],[7,1,7,5],[0,0,0,5],[1,0,1,5],[2,0,2,5],[3,0,3,5],[4,0,4,5]]}
["Licencia - License"]
["DC-M-"]
["Familia (de acuerdo con hoja \"Detalle de Autopartes\") - Family (According with Sheet \"Detalle de autopartes\")"]
["XXX-B-A"]
["Se deberán detallar los modelos incluidos en la nueva familia, en la pestaña correspondiente. Esta actualización requiere aprobación de IRAM-AITA. Serán requeridos ensayos completos para la nueva familia. Ver Hoja \"Detalle de autopartes\".\n\nIt shall be detailed the models included in the new family, on the corresponding tab. This update requires the IRAM-AITA approval. It will be required complete tests for the new family.  See Sheet \"Detalle de autopartes\"."]
["Condición - Condition",null,null,null,null,null,"M"]
["B","Reducción de Productos certificados - Certified Product Reduction"]
["I*","Extensión de productos a certificar - Product extension"]
["M","Modificación - Modification"]
["E","Existente - Existing"]
["Se deberán detallar las actualizaciones en la/s pestaña/s correspondiente a la/s familia/s a modificar. Marcar en la columna \"condición\", en cada caso: reducción, ampliación, modificación o existente. \nIt shall be detailed the updates on the tab/s related with the family/ies to modify. Mark in the column \"condition\", in each case: reduction, expansion, modification or existing."]
["* ENSAYOS A PRESENTAR: Clasificación del material de fricción / Resistencia al cizallamiento "]
["Condición\nCondition","Código\nCode","Descripción\nDescription","Aplicación\nApplication","Marca\nTrademark","Origen\nOrigin"]

{"sheet":"Fricción XXX-C-M","index":35,"n_rows":13,"n_cols":7,"rows_kept":13,"cut":false,"hidden":true,"merged":[[8,1,8,5],[9,1,9,5],[10,0,10,5],[11,0,11,5],[12,0,13,0],[12,1,13,1],[12,2,13,2],[12,3,13,3],[12,4,13,4],[12,5,13,5],[5,0,5,5],[6,1,6,5],[7,1,7,5],[0,0,0,5],[1,0,1,5],[2,0,2,5],[3,0,3,5],[4,0,4,5]]}
["Licencia - License"]
["DC-M-"]
["Familia (de acuerdo con hoja \"Detalle de Autopartes\") - Family (According with Sheet \"Detalle de autopartes\")"]
["XXX-C-M"]
["Se deberán detallar los modelos incluidos en la nueva familia, en la pestaña correspondiente. Esta actualización requiere aprobación de IRAM-AITA. Serán requeridos ensayos completos para la nueva familia. Ver Hoja \"Detalle de autopartes\".\n\nIt shall be detailed the models included in the new family, on the corresponding tab. This update requires the IRAM-AITA approval. It will be required complete tests for the new family.  See Sheet \"Detalle de autopartes\"."]
["Condición - Condition",null,null,null,null,null,"M"]
["B","Reducción de Productos certificados - Certified Product Reduction"]
["I*","Extensión de productos a certificar - Product extension"]
["M","Modificación - Modification"]
["E","Existente - Existing"]
["Se deberán detallar las actualizaciones en la/s pestaña/s correspondiente a la/s familia/s a modificar. Marcar en la columna \"condición\", en cada caso: reducción, ampliación, modificación o existente. \nIt shall be detailed the updates on the tab/s related with the family/ies to modify. Mark in the column \"condition\", in each case: reduction, expansion, modification or existing."]
["* ENSAYOS A PRESENTAR: Clasificación del material de fricción / Resistencia al cizallamiento "]
["Condición\nCondition","Código\nCode","Descripción\nDescription","Aplicación\nApplication","Marca\nTrademark","Origen\nOrigin"]

{"sheet":"Liquido Freno TIPO 3","index":36,"n_rows":13,"n_cols":7,"rows_kept":13,"cut":false,"hidden":true,"merged":[[8,1,8,5],[9,1,9,5],[10,0,10,5],[11,0,11,5],[12,0,13,0],[12,1,13,1],[12,2,13,2],[12,3,13,3],[12,4,13,4],[12,5,13,5],[5,0,5,5],[6,1,6,5],[7,1,7,5],[0,0,0,5],[1,0,1,5],[2,0,2,5],[3,0,3,5],[4,0,4,5]]}
["Licencia - License"]
["DC-M-"]
["Familia (de acuerdo con hoja \"Detalle de Autopartes\") - Family (According with Sheet \"Detalle de autopartes\")"]
["TIPO 3"]
["Se deberán detallar los modelos incluidos en la nueva familia, en la pestaña correspondiente. Esta actualización requiere aprobación de IRAM-AITA. Serán requeridos ensayos completos para la nueva familia. Ver Hoja \"Detalle de autopartes\".\n\nIt shall be detailed the models included in the new family, on the corresponding tab. This update requires the IRAM-AITA approval. It will be required complete tests for the new family.  See Sheet \"Detalle de autopartes\"."]
["Condición - Condition",null,null,null,null,null,"M"]
["B","Reducción de Productos certificados - Certified Product Reduction"]
["I*","Extensión de productos a certificar - Product extension"]
["M","Modificación - Modification"]
["E","Existente - Existing"]
["Se deberán detallar las actualizaciones en la/s pestaña/s correspondiente a la/s familia/s a modificar. Marcar en la columna \"condición\", en cada caso: reducción, ampliación, modificación o existente. \nIt shall be detailed the updates on the tab/s related with the family/ies to modify. Mark in the column \"condition\", in each case: reduction, expansion, modification or existing."]
["* ENSAYOS A PRESENTAR: Punto de ebullición / Ph a 25°C / Contenido de agua"]
["Condición\nCondition","Código\nCode","Descripción\nDescription","Envase\nContainer","Marca\nTrademark","Origen / Proveedor\nOrigin / Supplier"]

{"sheet":"Líquido Freno TIPO 4","index":37,"n_rows":13,"n_cols":7,"rows_kept":13,"cut":false,"hidden":true,"merged":[[8,1,8,5],[9,1,9,5],[10,0,10,5],[11,0,11,5],[12,0,13,0],[12,1,13,1],[12,2,13,2],[12,3,13,3],[12,4,13,4],[12,5,13,5],[5,0,5,5],[6,1,6,5],[7,1,7,5],[0,0,0,5],[1,0,1,5],[2,0,2,5],[3,0,3,5],[4,0,4,5]]}
["Licencia - License"]
["DC-M-"]
["Familia (de acuerdo con hoja \"Detalle de Autopartes\") - Family (According with Sheet \"Detalle de autopartes\")"]
["TIPO 4"]
["Se deberán detallar los modelos incluidos en la nueva familia, en la pestaña correspondiente. Esta actualización requiere aprobación de IRAM-AITA. Serán requeridos ensayos completos para la nueva familia. Ver Hoja \"Detalle de autopartes\".\n\nIt shall be detailed the models included in the new family, on the corresponding tab. This update requires the IRAM-AITA approval. It will be required complete tests for the new family.  See Sheet \"Detalle de autopartes\"."]
["Condición - Condition",null,null,null,null,null,"M"]
["B","Reducción de Productos certificados - Certified Product Reduction"]
["I*","Extensión de productos a certificar - Product extension"]
["M","Modificación - Modification"]
["E","Existente - Existing"]
["Se deberán detallar las actualizaciones en la/s pestaña/s correspondiente a la/s familia/s a modificar. Marcar en la columna \"condición\", en cada caso: reducción, ampliación, modificación o existente. \nIt shall be detailed the updates on the tab/s related with the family/ies to modify. Mark in the column \"condition\", in each case: reduction, expansion, modification or existing."]
["* ENSAYOS A PRESENTAR: Punto de ebullición / Ph a 25°C / Contenido de agua"]
["Condición\nCondition","Código\nCode","Descripción\nDescription","Envase\nContainer","Marca\nTrademark","Origen / Proveedor\nOrigin / Supplier"]

{"sheet":"Líquido Freno TIPO 5.1","index":38,"n_rows":13,"n_cols":7,"rows_kept":13,"cut":false,"hidden":true,"merged":[[8,1,8,5],[9,1,9,5],[10,0,10,5],[11,0,11,5],[12,0,13,0],[12,1,13,1],[12,2,13,2],[12,3,13,3],[12,4,13,4],[12,5,13,5],[5,0,5,5],[6,1,6,5],[7,1,7,5],[0,0,0,5],[1,0,1,5],[2,0,2,5],[3,0,3,5],[4,0,4,5]]}
["Licencia - License"]
["DC-M-"]
["Familia (de acuerdo con hoja \"Detalle de Autopartes\") - Family (According with Sheet \"Detalle de autopartes\")"]
["TIPO 5.1"]
["Se deberán detallar los modelos incluidos en la nueva familia, en la pestaña correspondiente. Esta actualización requiere aprobación de IRAM-AITA. Serán requeridos ensayos completos para la nueva familia. Ver Hoja \"Detalle de autopartes\".\n\nIt shall be detailed the models included in the new family, on the corresponding tab. This update requires the IRAM-AITA approval. It will be required complete tests for the new family.  See Sheet \"Detalle de autopartes\"."]
["Condición - Condition",null,null,null,null,null,"M"]
["B","Reducción de Productos certificados - Certified Product Reduction"]
["I*","Extensión de productos a certificar - Product extension"]
["M","Modificación - Modification"]
["E","Existente - Existing"]
["Se deberán detallar las actualizaciones en la/s pestaña/s correspondiente a la/s familia/s a modificar. Marcar en la columna \"condición\", en cada caso: reducción, ampliación, modificación o existente. \nIt shall be detailed the updates on the tab/s related with the family/ies to modify. Mark in the column \"condition\", in each case: reduction, expansion, modification or existing."]
["* ENSAYOS A PRESENTAR: Punto de ebullición / Ph a 25°C / Contenido de agua"]
["Condición\nCondition","Código\nCode","Descripción\nDescription","Envase\nContainer","Marca\nTrademark","Origen / Proveedor\nOrigin / Supplier"]

{"sheet":"Lamparas Filamento","index":39,"n_rows":13,"n_cols":7,"rows_kept":13,"cut":false,"hidden":true,"merged":[[9,1,9,5],[10,0,10,5],[11,0,11,5],[12,0,13,0],[12,1,13,1],[12,2,13,2],[12,3,13,3],[12,4,13,4],[12,5,13,5],[5,0,5,5],[6,1,6,5],[7,1,7,5],[8,1,8,5],[0,0,0,5],[1,0,1,5],[2,0,2,5],[3,0,3,5],[4,0,4,5]]}
["Licencia - License"]
["DC-M-"]
["Familia (de acuerdo con hoja \"Detalle de Autopartes\") - Family (According with Sheet \"Detalle de autopartes\")"]
["Tipo filamento"]
["Se deberán detallar los modelos incluidos en la nueva familia, en la pestaña correspondiente. Esta actualización requiere aprobación de IRAM-AITA. Serán requeridos ensayos completos para la nueva familia. Ver Hoja \"Detalle de autopartes\".\n\nIt shall be detailed the models included in the new family, on the corresponding tab. This update requires the IRAM-AITA approval. It will be required complete tests for the new family.  See Sheet \"Detalle de autopartes\"."]
["Condición - Condition",null,null,null,null,null,"M"]
["B","Reducción de Productos certificados - Certified Product Reduction"]
["I*","Extensión de productos a certificar - Product extension"]
["M","Modificación - Modification"]
["E","Existente - Existing"]
["Se deberán detallar las actualizaciones en la/s pestaña/s correspondiente a la/s familia/s a modificar. Marcar en la columna \"condición\", en cada caso: reducción, ampliación, modificación o existente. \nIt shall be detailed the updates on the tab/s related with the family/ies to modify. Mark in the column \"condition\", in each case: reduction, expansion, modification or existing."]
["ENSAYOS A PRESENTAR: Dimensional y  Fotométrico / TESTS TO BE SUBMITTED: Dimensional and Photometric"]
["Condición\nCondition","Código\nCode","Descripción\nDescription","Aplicación\nApplication","Marca\nTrademark","Origen\nOrigin"]

{"sheet":"Lamparas gas","index":40,"n_rows":13,"n_cols":7,"rows_kept":13,"cut":false,"hidden":true,"merged":[[9,1,9,5],[10,0,10,5],[11,0,11,5],[12,0,13,0],[12,1,13,1],[12,2,13,2],[12,3,13,3],[12,4,13,4],[12,5,13,5],[5,0,5,5],[6,1,6,5],[7,1,7,5],[8,1,8,5],[0,0,0,5],[1,0,1,5],[2,0,2,5],[3,0,3,5],[4,0,4,5]]}
["Licencia - License"]
["DC-M-"]
["Familia (de acuerdo con hoja \"Detalle de Autopartes\") - Family (According with Sheet \"Detalle de autopartes\")"]
["Tipo descarga de gas"]
["Se deberán detallar los modelos incluidos en la nueva familia, en la pestaña correspondiente. Esta actualización requiere aprobación de IRAM-AITA. Serán requeridos ensayos completos para la nueva familia. Ver Hoja \"Detalle de autopartes\".\n\nIt shall be detailed the models included in the new family, on the corresponding tab. This update requires the IRAM-AITA approval. It will be required complete tests for the new family.  See Sheet \"Detalle de autopartes\"."]
["Condición - Condition",null,null,null,null,null,"M"]
["B","Reducción de Productos certificados - Certified Product Reduction"]
["I*","Extensión de productos a certificar - Product extension"]
["M","Modificación - Modification"]
["E","Existente - Existing"]
["Se deberán detallar las actualizaciones en la/s pestaña/s correspondiente a la/s familia/s a modificar. Marcar en la columna \"condición\", en cada caso: reducción, ampliación, modificación o existente. \nIt shall be detailed the updates on the tab/s related with the family/ies to modify. Mark in the column \"condition\", in each case: reduction, expansion, modification or existing."]
["ENSAYOS A PRESENTAR: Dimensional y  Fotométrico / TESTS TO BE SUBMITTED: Dimensional and Photometric"]
["Condición\nCondition","Código\nCode","Descripción\nDescription","Aplicación\nApplication","Marca\nTrademark","Origen\nOrigin"]

{"sheet":"Lámparas filamento señal","index":41,"n_rows":13,"n_cols":7,"rows_kept":13,"cut":false,"hidden":true,"merged":[[9,1,9,5],[10,0,10,5],[11,0,11,5],[12,0,13,0],[12,1,13,1],[12,2,13,2],[12,3,13,3],[12,4,13,4],[12,5,13,5],[5,0,5,5],[6,1,6,5],[7,1,7,5],[8,1,8,5],[0,0,0,5],[1,0,1,5],[2,0,2,5],[3,0,3,5],[4,0,4,5]]}
["Licencia - License"]
["DC-M-"]
["Familia (de acuerdo con hoja \"Detalle de Autopartes\") - Family (According with Sheet \"Detalle de autopartes\")"]
["Tipo filamento señal"]
["Se deberán detallar los modelos incluidos en la nueva familia, en la pestaña correspondiente. Esta actualización requiere aprobación de IRAM-AITA. Serán requeridos ensayos completos para la nueva familia. Ver Hoja \"Detalle de autopartes\".\n\nIt shall be detailed the models included in the new family, on the corresponding tab. This update requires the IRAM-AITA approval. It will be required complete tests for the new family.  See Sheet \"Detalle de autopartes\"."]
["Condición - Condition",null,null,null,null,null,"M"]
["B","Reducción de Productos certificados - Certified Product Reduction"]
["I*","Extensión de productos a certificar - Product extension"]
["M","Modificación - Modification"]
["E","Existente - Existing"]
["Se deberán detallar las actualizaciones en la/s pestaña/s correspondiente a la/s familia/s a modificar. Marcar en la columna \"condición\", en cada caso: reducción, ampliación, modificación o existente. \nIt shall be detailed the updates on the tab/s related with the family/ies to modify. Mark in the column \"condition\", in each case: reduction, expansion, modification or existing."]
["ENSAYOS A PRESENTAR: Dimensional y  Fotométrico / TESTS TO BE SUBMITTED: Dimensional and Photometric"]
["Condición\nCondition","Código\nCode","Descripción\nDescription","Aplicación\nApplication","Marca\nTrademark","Origen\nOrigin"]

{"sheet":"Extremos F1","index":42,"n_rows":13,"n_cols":7,"rows_kept":13,"cut":false,"hidden":true,"merged":[[8,1,8,5],[9,1,9,5],[10,0,10,5],[11,0,11,5],[12,0,13,0],[12,1,13,1],[12,2,13,2],[12,3,13,3],[12,4,13,4],[12,5,13,5],[5,0,5,5],[6,1,6,5],[7,1,7,5],[0,0,0,5],[1,0,1,5],[2,0,2,5],[3,0,3,5],[4,0,4,5]]}
["Licencia - License"]
["DC-M-"]
["Familia (de acuerdo con hoja \"Detalle de Autopartes\") - Family (According with Sheet \"Detalle de autopartes\")"]
["F1"]
["Se deberán detallar los modelos incluidos en la nueva familia, en la pestaña correspondiente. Esta actualización requiere aprobación de IRAM-AITA. Serán requeridos ensayos completos para la nueva familia. Ver Hoja \"Detalle de autopartes\".\n\nIt shall be detailed the models included in the new family, on the corresponding tab. This update requires the IRAM-AITA approval. It will be required complete tests for the new family.  See Sheet \"Detalle de autopartes\"."]
["Condición - Condition",null,null,null,null,null,"M"]
["B","Reducción de Productos certificados - Certified Product Reduction"]
["I*","Extensión de productos a certificar - Product extension"]
["M","Modificación - Modification"]
["E","Existente - Existing"]
["Se deberán detallar las actualizaciones en la/s pestaña/s correspondiente a la/s familia/s a modificar. Marcar en la columna \"condición\", en cada caso: reducción, ampliación, modificación o existente. \nIt shall be detailed the updates on the tab/s related with the family/ies to modify. Mark in the column \"condition\", in each case: reduction, expansion, modification or existing."]
["* ENSAYOS A PRESENTAR: Impacto de rótula, Extracción de perno y expulsión de tapa para articulaciones de dirección & Momento de rotación-oscilación"]
["Condición\nCondition","Código\nCode","Descripción\nDescription","Aplicación\nApplication","Marca\nTrademark","Origen\nOrigin"]

{"sheet":"Extremos F2","index":43,"n_rows":13,"n_cols":7,"rows_kept":13,"cut":false,"hidden":true,"merged":[[8,1,8,5],[9,1,9,5],[10,0,10,5],[11,0,11,5],[12,0,13,0],[12,1,13,1],[12,2,13,2],[12,3,13,3],[12,4,13,4],[12,5,13,5],[5,0,5,5],[6,1,6,5],[7,1,7,5],[0,0,0,5],[1,0,1,5],[2,0,2,5],[3,0,3,5],[4,0,4,5]]}
["Licencia - License"]
["DC-M-"]
["Familia (de acuerdo con hoja \"Detalle de Autopartes\") - Family (According with Sheet \"Detalle de autopartes\")"]
["F2"]
["Se deberán detallar los modelos incluidos en la nueva familia, en la pestaña correspondiente. Esta actualización requiere aprobación de IRAM-AITA. Serán requeridos ensayos completos para la nueva familia. Ver Hoja \"Detalle de autopartes\".\n\nIt shall be detailed the models included in the new family, on the corresponding tab. This update requires the IRAM-AITA approval. It will be required complete tests for the new family.  See Sheet \"Detalle de autopartes\"."]
["Condición - Condition",null,null,null,null,null,"M"]
["B","Reducción de Productos certificados - Certified Product Reduction"]
["I*","Extensión de productos a certificar - Product extension"]
["M","Modificación - Modification"]
["E","Existente - Existing"]
["Se deberán detallar las actualizaciones en la/s pestaña/s correspondiente a la/s familia/s a modificar. Marcar en la columna \"condición\", en cada caso: reducción, ampliación, modificación o existente. \nIt shall be detailed the updates on the tab/s related with the family/ies to modify. Mark in the column \"condition\", in each case: reduction, expansion, modification or existing."]
["* ENSAYOS A PRESENTAR: Impacto de rótula, Extracción de perno y expulsión de tapa para articulaciones de dirección & Momento de rotación-oscilación"]
["Condición\nCondition","Código\nCode","Descripción\nDescription","Aplicación\nApplication","Marca\nTrademark","Origen\nOrigin"]

{"sheet":"Extremos F3","index":44,"n_rows":13,"n_cols":7,"rows_kept":13,"cut":false,"hidden":true,"merged":[[8,1,8,5],[9,1,9,5],[10,0,10,5],[11,0,11,5],[12,0,13,0],[12,1,13,1],[12,2,13,2],[12,3,13,3],[12,4,13,4],[12,5,13,5],[5,0,5,5],[6,1,6,5],[7,1,7,5],[0,0,0,5],[1,0,1,5],[2,0,2,5],[3,0,3,5],[4,0,4,5]]}
["Licencia - License"]
["DC-M-"]
["Familia (de acuerdo con hoja \"Detalle de Autopartes\") - Family (According with Sheet \"Detalle de autopartes\")"]
["F3"]
["Se deberán detallar los modelos incluidos en la nueva familia, en la pestaña correspondiente. Esta actualización requiere aprobación de IRAM-AITA. Serán requeridos ensayos completos para la nueva familia. Ver Hoja \"Detalle de autopartes\".\n\nIt shall be detailed the models included in the new family, on the corresponding tab. This update requires the IRAM-AITA approval. It will be required complete tests for the new family.  See Sheet \"Detalle de autopartes\"."]
["Condición - Condition",null,null,null,null,null,"M"]
["B","Reducción de Productos certificados - Certified Product Reduction"]
["I*","Extensión de productos a certificar - Product extension"]
["M","Modificación - Modification"]
["E","Existente - Existing"]
["Se deberán detallar las actualizaciones en la/s pestaña/s correspondiente a la/s familia/s a modificar. Marcar en la columna \"condición\", en cada caso: reducción, ampliación, modificación o existente. \nIt shall be detailed the updates on the tab/s related with the family/ies to modify. Mark in the column \"condition\", in each case: reduction, expansion, modification or existing."]
["* ENSAYOS A PRESENTAR: Impacto de rótula, Extracción de perno y expulsión de tapa para articulaciones de dirección & Momento de rotación-oscilación"]
["Condición\nCondition","Código\nCode","Descripción\nDescription","Aplicación\nApplication","Marca\nTrademark","Origen\nOrigin"]

{"sheet":"Espejos EX","index":45,"n_rows":13,"n_cols":7,"rows_kept":13,"cut":false,"hidden":true,"merged":[[8,1,8,5],[9,1,9,5],[10,0,10,5],[11,0,11,5],[12,0,13,0],[12,1,13,1],[12,2,13,2],[12,3,13,3],[12,4,13,4],[12,5,13,5],[5,0,5,5],[6,1,6,5],[7,1,7,5],[0,0,0,5],[1,0,1,5],[2,0,2,5],[3,0,3,5],[4,0,4,5]]}
["Licencia - License"]
["DC-M-"]
["Familia (de acuerdo con hoja \"Detalle de Autopartes\") - Family (According with Sheet \"Detalle de autopartes\")"]
["EX"]
["Se deberán detallar los modelos incluidos en la nueva familia, en la pestaña correspondiente. Esta actualización requiere aprobación de IRAM-AITA. Serán requeridos ensayos completos para la nueva familia. Ver Hoja \"Detalle de autopartes\".\n\nIt shall be detailed the models included in the new family, on the corresponding tab. This update requires the IRAM-AITA approval. It will be required complete tests for the new family.  See Sheet \"Detalle de autopartes\"."]
["Condición - Condition",null,null,null,null,null,"M"]
["B","Reducción de Productos certificados - Certified Product Reduction"]
["I*","Extensión de productos a certificar - Product extension"]
["M","Modificación - Modification"]
["E","Existente - Existing"]
["Se deberán detallar las actualizaciones en la/s pestaña/s correspondiente a la/s familia/s a modificar. Marcar en la columna \"condición\", en cada caso: reducción, ampliación, modificación o existente. \nIt shall be detailed the updates on the tab/s related with the family/ies to modify. Mark in the column \"condition\", in each case: reduction, expansion, modification or existing."]
["* ENSAYOS A PRESENTAR: Flexión sobre carcasa fijada al vástago, Reflectividad & Radio de curvatura"]
["Condición\nCondition","Código\nCode","Descripción\nDescription","Aplicación\nApplication","Marca\nTrademark","Origen\nOrigin"]

{"sheet":"Espejos IN","index":46,"n_rows":13,"n_cols":7,"rows_kept":13,"cut":false,"hidden":true,"merged":[[8,1,8,5],[9,1,9,5],[10,0,10,5],[11,0,11,5],[12,0,13,0],[12,1,13,1],[12,2,13,2],[12,3,13,3],[12,4,13,4],[12,5,13,5],[5,0,5,5],[6,1,6,5],[7,1,7,5],[0,0,0,5],[1,0,1,5],[2,0,2,5],[3,0,3,5],[4,0,4,5]]}
["Licencia - License"]
["DC-M-"]
["Familia (de acuerdo con hoja \"Detalle de Autopartes\") - Family (According with Sheet \"Detalle de autopartes\")"]
["IN"]
["Se deberán detallar los modelos incluidos en la nueva familia, en la pestaña correspondiente. Esta actualización requiere aprobación de IRAM-AITA. Serán requeridos ensayos completos para la nueva familia. Ver Hoja \"Detalle de autopartes\".\n\nIt shall be detailed the models included in the new family, on the corresponding tab. This update requires the IRAM-AITA approval. It will be required complete tests for the new family.  See Sheet \"Detalle de autopartes\"."]
["Condición - Condition",null,null,null,null,null,"M"]
["B","Reducción de Productos certificados - Certified Product Reduction"]
["I*","Extensión de productos a certificar - Product extension"]
["M","Modificación - Modification"]
["E","Existente - Existing"]
["Se deberán detallar las actualizaciones en la/s pestaña/s correspondiente a la/s familia/s a modificar. Marcar en la columna \"condición\", en cada caso: reducción, ampliación, modificación o existente. \nIt shall be detailed the updates on the tab/s related with the family/ies to modify. Mark in the column \"condition\", in each case: reduction, expansion, modification or existing."]
["* ENSAYOS A PRESENTAR: Flexión sobre carcasa fijada al vástago, Reflectividad & Radio de curvatura"]
["Condición\nCondition","Código\nCode","Descripción\nDescription","Aplicación\nApplication","Marca\nTrademark","Origen\nOrigin"]

{"sheet":"Fijación TRA","index":47,"n_rows":12,"n_cols":7,"rows_kept":12,"cut":false,"hidden":true,"merged":[[8,1,8,5],[9,1,9,5],[10,0,10,5],[11,0,12,0],[11,1,12,1],[11,2,12,2],[11,3,12,3],[11,4,12,4],[11,5,12,5],[5,0,5,5],[6,1,6,5],[7,1,7,5],[0,0,0,5],[1,0,1,5],[2,0,2,5],[3,0,3,5],[4,0,4,5]]}
["Licencia - License"]
["DC-M-"]
["Familia (de acuerdo con hoja \"Detalle de Autopartes\") - Family (According with Sheet \"Detalle de autopartes\")"]
["TRA"]
["Se deberán detallar los modelos incluidos en la nueva familia, en la pestaña correspondiente. Esta actualización requiere aprobación de IRAM-AITA. Serán requeridos ensayos completos para la nueva familia. Ver Hoja \"Detalle de autopartes\".\n\nIt shall be detailed the models included in the new family, on the corresponding tab. This update requires the IRAM-AITA approval. It will be required complete tests for the new family.  See Sheet \"Detalle de autopartes\"."]
["Condición - Condition",null,null,null,null,null,"M"]
["B","Reducción de Productos certificados - Certified Product Reduction"]
["I*","Extensión de productos a certificar - Product extension"]
["M","Modificación - Modification"]
["E","Existente - Existing"]
["Se deberán detallar las actualizaciones en la/s pestaña/s correspondiente a la/s familia/s a modificar. Marcar en la columna \"condición\", en cada caso: reducción, ampliación, modificación o existente. \nIt shall be detailed the updates on the tab/s related with the family/ies to modify. Mark in the column \"condition\", in each case: reduction, expansion, modification or existing."]
["Condición\nCondition","Código\nCode","Descripción\nDescription","Aplicación\nApplication","Marca\nTrademark","Origen\nOrigin"]

{"sheet":"Fijación GAN","index":48,"n_rows":12,"n_cols":7,"rows_kept":12,"cut":false,"hidden":true,"merged":[[8,1,8,5],[9,1,9,5],[10,0,10,5],[11,0,12,0],[11,1,12,1],[11,2,12,2],[11,3,12,3],[11,4,12,4],[11,5,12,5],[5,0,5,5],[6,1,6,5],[7,1,7,5],[0,0,0,5],[1,0,1,5],[2,0,2,5],[3,0,3,5],[4,0,4,5]]}
["Licencia - License"]
["DC-M-"]
["Familia (de acuerdo con hoja \"Detalle de Autopartes\") - Family (According with Sheet \"Detalle de autopartes\")"]
["GAN"]
["Se deberán detallar los modelos incluidos en la nueva familia, en la pestaña correspondiente. Esta actualización requiere aprobación de IRAM-AITA. Serán requeridos ensayos completos para la nueva familia. Ver Hoja \"Detalle de autopartes\".\n\nIt shall be detailed the models included in the new family, on the corresponding tab. This update requires the IRAM-AITA approval. It will be required complete tests for the new family.  See Sheet \"Detalle de autopartes\"."]
["Condición - Condition",null,null,null,null,null,"M"]
["B","Reducción de Productos certificados - Certified Product Reduction"]
["I*","Extensión de productos a certificar - Product extension"]
["M","Modificación - Modification"]
["E","Existente - Existing"]
["Se deberán detallar las actualizaciones en la/s pestaña/s correspondiente a la/s familia/s a modificar. Marcar en la columna \"condición\", en cada caso: reducción, ampliación, modificación o existente. \nIt shall be detailed the updates on the tab/s related with the family/ies to modify. Mark in the column \"condition\", in each case: reduction, expansion, modification or existing."]
["Condición\nCondition","Código\nCode","Descripción\nDescription","Aplicación\nApplication","Marca\nTrademark","Origen\nOrigin"]

{"sheet":"Fijación OJA","index":49,"n_rows":12,"n_cols":7,"rows_kept":12,"cut":false,"hidden":true,"merged":[[8,1,8,5],[9,1,9,5],[10,0,10,5],[11,0,12,0],[11,1,12,1],[11,2,12,2],[11,3,12,3],[11,4,12,4],[11,5,12,5],[5,0,5,5],[6,1,6,5],[7,1,7,5],[0,0,0,5],[1,0,1,5],[2,0,2,5],[3,0,3,5],[4,0,4,5]]}
["Licencia - License"]
["DC-M-"]
["Familia (de acuerdo con hoja \"Detalle de Autopartes\") - Family (According with Sheet \"Detalle de autopartes\")"]
["OJA"]
["Se deberán detallar los modelos incluidos en la nueva familia, en la pestaña correspondiente. Esta actualización requiere aprobación de IRAM-AITA. Serán requeridos ensayos completos para la nueva familia. Ver Hoja \"Detalle de autopartes\".\n\nIt shall be detailed the models included in the new family, on the corresponding tab. This update requires the IRAM-AITA approval. It will be required complete tests for the new family.  See Sheet \"Detalle de autopartes\"."]
["Condición - Condition",null,null,null,null,null,"M"]
["B","Reducción de Productos certificados - Certified Product Reduction"]
["I*","Extensión de productos a certificar - Product extension"]
["M","Modificación - Modification"]
["E","Existente - Existing"]
["Se deberán detallar las actualizaciones en la/s pestaña/s correspondiente a la/s familia/s a modificar. Marcar en la columna \"condición\", en cada caso: reducción, ampliación, modificación o existente. \nIt shall be detailed the updates on the tab/s related with the family/ies to modify. Mark in the column \"condition\", in each case: reduction, expansion, modification or existing."]
["Condición\nCondition","Código\nCode","Descripción\nDescription","Aplicación\nApplication","Marca\nTrademark","Origen\nOrigin"]

{"sheet":"Fijación PER","index":50,"n_rows":12,"n_cols":7,"rows_kept":12,"cut":false,"hidden":true,"merged":[[8,1,8,5],[9,1,9,5],[10,0,10,5],[11,0,12,0],[11,1,12,1],[11,2,12,2],[11,3,12,3],[11,4,12,4],[11,5,12,5],[5,0,5,5],[6,1,6,5],[7,1,7,5],[0,0,0,5],[1,0,1,5],[2,0,2,5],[3,0,3,5],[4,0,4,5]]}
["Licencia - License"]
["DC-M-"]
["Familia (de acuerdo con hoja \"Detalle de Autopartes\") - Family (According with Sheet \"Detalle de autopartes\")"]
["PER"]
["Se deberán detallar los modelos incluidos en la nueva familia, en la pestaña correspondiente. Esta actualización requiere aprobación de IRAM-AITA. Serán requeridos ensayos completos para la nueva familia. Ver Hoja \"Detalle de autopartes\".\n\nIt shall be detailed the models included in the new family, on the corresponding tab. This update requires the IRAM-AITA approval. It will be required complete tests for the new family.  See Sheet \"Detalle de autopartes\"."]
["Condición - Condition",null,null,null,null,null,"M"]
["B","Reducción de Productos certificados - Certified Product Reduction"]
["I*","Extensión de productos a certificar - Product extension"]
["M","Modificación - Modification"]
["E","Existente - Existing"]
["Se deberán detallar las actualizaciones en la/s pestaña/s correspondiente a la/s familia/s a modificar. Marcar en la columna \"condición\", en cada caso: reducción, ampliación, modificación o existente. \nIt shall be detailed the updates on the tab/s related with the family/ies to modify. Mark in the column \"condition\", in each case: reduction, expansion, modification or existing."]
["Condición\nCondition","Código\nCode","Descripción\nDescription","Aplicación\nApplication","Marca\nTrademark","Origen\nOrigin"]

{"sheet":"Fijación PLA","index":51,"n_rows":12,"n_cols":7,"rows_kept":12,"cut":false,"hidden":true,"merged":[[8,1,8,5],[9,1,9,5],[10,0,10,5],[11,0,12,0],[11,1,12,1],[11,2,12,2],[11,3,12,3],[11,4,12,4],[11,5,12,5],[5,0,5,5],[6,1,6,5],[7,1,7,5],[0,0,0,5],[1,0,1,5],[2,0,2,5],[3,0,3,5],[4,0,4,5]]}
["Licencia - License"]
["DC-M-"]
["Familia (de acuerdo con hoja \"Detalle de Autopartes\") - Family (According with Sheet \"Detalle de autopartes\")"]
["PLA"]
["Se deberán detallar los modelos incluidos en la nueva familia, en la pestaña correspondiente. Esta actualización requiere aprobación de IRAM-AITA. Serán requeridos ensayos completos para la nueva familia. Ver Hoja \"Detalle de autopartes\".\n\nIt shall be detailed the models included in the new family, on the corresponding tab. This update requires the IRAM-AITA approval. It will be required complete tests for the new family.  See Sheet \"Detalle de autopartes\"."]
["Condición - Condition",null,null,null,null,null,"M"]
["B","Reducción de Productos certificados - Certified Product Reduction"]
["I*","Extensión de productos a certificar - Product extension"]
["M","Modificación - Modification"]
["E","Existente - Existing"]
["Se deberán detallar las actualizaciones en la/s pestaña/s correspondiente a la/s familia/s a modificar. Marcar en la columna \"condición\", en cada caso: reducción, ampliación, modificación o existente. \nIt shall be detailed the updates on the tab/s related with the family/ies to modify. Mark in the column \"condition\", in each case: reduction, expansion, modification or existing."]
["Condición\nCondition","Código\nCode","Descripción\nDescription","Aplicación\nApplication","Marca\nTrademark","Origen\nOrigin"]

{"sheet":"Cascos TUA","index":52,"n_rows":13,"n_cols":7,"rows_kept":13,"cut":false,"hidden":true,"merged":[[8,1,8,5],[9,1,9,5],[10,0,10,5],[11,0,11,5],[12,0,13,0],[12,1,13,1],[12,2,13,2],[12,3,13,3],[12,4,13,4],[12,5,13,5],[5,0,5,5],[6,1,6,5],[7,1,7,5],[0,0,0,5],[1,0,1,5],[2,0,2,5],[3,0,3,5],[4,0,4,5]]}
["Licencia - License"]
["DC-M-"]
["Familia (de acuerdo con hoja \"Detalle de Autopartes\") - Family (According with Sheet \"Detalle de autopartes\")"]
["TUA"]
["Se deberán detallar los modelos incluidos en la nueva familia, en la pestaña correspondiente. Esta actualización requiere aprobación de IRAM-AITA. Serán requeridos ensayos completos para la nueva familia. Ver Hoja \"Detalle de autopartes\".\n\nIt shall be detailed the models included in the new family, on the corresponding tab. This update requires the IRAM-AITA approval. It will be required complete tests for the new family.  See Sheet \"Detalle de autopartes\"."]
["Condición - Condition",null,null,null,null,null,"M"]
["B","Reducción de Productos certificados - Certified Product Reduction"]
["I*","Extensión de productos a certificar - Product extension"]
["M","Modificación - Modification"]
["E","Existente - Existing"]
["Se deberán detallar las actualizaciones en la/s pestaña/s correspondiente a la/s familia/s a modificar. Marcar en la columna \"condición\", en cada caso: reducción, ampliación, modificación o existente. \nIt shall be detailed the updates on the tab/s related with the family/ies to modify. Mark in the column \"condition\", in each case: reduction, expansion, modification or existing."]
["* ENSAYOS A PRESENTAR: Impacto y sistema de retención"]
["Condición\nCondition","Código\nCode","Descripción\nDescription","Aplicación\nApplication","Marca\nTrademark","Origen\nOrigin"]

{"sheet":"Cascos TUI","index":53,"n_rows":13,"n_cols":7,"rows_kept":13,"cut":false,"hidden":true,"merged":[[8,1,8,5],[9,1,9,5],[10,0,10,5],[11,0,11,5],[12,0,13,0],[12,1,13,1],[12,2,13,2],[12,3,13,3],[12,4,13,4],[12,5,13,5],[5,0,5,5],[6,1,6,5],[7,1,7,5],[0,0,0,5],[1,0,1,5],[2,0,2,5],[3,0,3,5],[4,0,4,5]]}
["Licencia - License"]
["DC-M-"]
["Familia (de acuerdo con hoja \"Detalle de Autopartes\") - Family (According with Sheet \"Detalle de autopartes\")"]
["TUI"]
["Se deberán detallar los modelos incluidos en la nueva familia, en la pestaña correspondiente. Esta actualización requiere aprobación de IRAM-AITA. Serán requeridos ensayos completos para la nueva familia. Ver Hoja \"Detalle de autopartes\".\n\nIt shall be detailed the models included in the new family, on the corresponding tab. This update requires the IRAM-AITA approval. It will be required complete tests for the new family.  See Sheet \"Detalle de autopartes\"."]
["Condición - Condition",null,null,null,null,null,"M"]
["B","Reducción de Productos certificados - Certified Product Reduction"]
["I*","Extensión de productos a certificar - Product extension"]
["M","Modificación - Modification"]
["E","Existente - Existing"]
["Se deberán detallar las actualizaciones en la/s pestaña/s correspondiente a la/s familia/s a modificar. Marcar en la columna \"condición\", en cada caso: reducción, ampliación, modificación o existente. \nIt shall be detailed the updates on the tab/s related with the family/ies to modify. Mark in the column \"condition\", in each case: reduction, expansion, modification or existing."]
["* ENSAYOS A PRESENTAR: Impacto y sistema de retención"]
["Condición\nCondition","Código\nCode","Descripción\nDescription","Aplicación\nApplication","Marca\nTrademark","Origen\nOrigin"]

{"sheet":"Cascos TUM","index":54,"n_rows":13,"n_cols":7,"rows_kept":13,"cut":false,"hidden":true,"merged":[[8,1,8,5],[9,1,9,5],[10,0,10,5],[11,0,11,5],[12,0,13,0],[12,1,13,1],[12,2,13,2],[12,3,13,3],[12,4,13,4],[12,5,13,5],[5,0,5,5],[6,1,6,5],[7,1,7,5],[0,0,0,5],[1,0,1,5],[2,0,2,5],[3,0,3,5],[4,0,4,5]]}
["Licencia - License"]
["DC-M-"]
["Familia (de acuerdo con hoja \"Detalle de Autopartes\") - Family (According with Sheet \"Detalle de autopartes\")"]
["TUM"]
["Se deberán detallar los modelos incluidos en la nueva familia, en la pestaña correspondiente. Esta actualización requiere aprobación de IRAM-AITA. Serán requeridos ensayos completos para la nueva familia. Ver Hoja \"Detalle de autopartes\".\n\nIt shall be detailed the models included in the new family, on the corresponding tab. This update requires the IRAM-AITA approval. It will be required complete tests for the new family.  See Sheet \"Detalle de autopartes\"."]
["Condición - Condition",null,null,null,null,null,"M"]
["B","Reducción de Productos certificados - Certified Product Reduction"]
["I*","Extensión de productos a certificar - Product extension"]
["M","Modificación - Modification"]
["E","Existente - Existing"]
["Se deberán detallar las actualizaciones en la/s pestaña/s correspondiente a la/s familia/s a modificar. Marcar en la columna \"condición\", en cada caso: reducción, ampliación, modificación o existente. \nIt shall be detailed the updates on the tab/s related with the family/ies to modify. Mark in the column \"condition\", in each case: reduction, expansion, modification or existing."]
["* ENSAYOS A PRESENTAR: Impacto y sistema de retención"]
["Condición\nCondition","Código\nCode","Descripción\nDescription","Aplicación\nApplication","Marca\nTrademark","Origen\nOrigin"]

{"sheet":"Cascos COA","index":55,"n_rows":13,"n_cols":7,"rows_kept":13,"cut":false,"hidden":true,"merged":[[8,1,8,5],[9,1,9,5],[10,0,10,5],[11,0,11,5],[12,0,13,0],[12,1,13,1],[12,2,13,2],[12,3,13,3],[12,4,13,4],[12,5,13,5],[5,0,5,5],[6,1,6,5],[7,1,7,5],[0,0,0,5],[1,0,1,5],[2,0,2,5],[3,0,3,5],[4,0,4,5]]}
["Licencia - License"]
["DC-M-"]
["Familia (de acuerdo con hoja \"Detalle de Autopartes\") - Family (According with Sheet \"Detalle de autopartes\")"]
["COA"]
["Se deberán detallar los modelos incluidos en la nueva familia, en la pestaña correspondiente. Esta actualización requiere aprobación de IRAM-AITA. Serán requeridos ensayos completos para la nueva familia. Ver Hoja \"Detalle de autopartes\".\n\nIt shall be detailed the models included in the new family, on the corresponding tab. This update requires the IRAM-AITA approval. It will be required complete tests for the new family.  See Sheet \"Detalle de autopartes\"."]
["Condición - Condition",null,null,null,null,null,"M"]
["B","Reducción de Productos certificados - Certified Product Reduction"]
["I*","Extensión de productos a certificar - Product extension"]
["M","Modificación - Modification"]
["E","Existente - Existing"]
["Se deberán detallar las actualizaciones en la/s pestaña/s correspondiente a la/s familia/s a modificar. Marcar en la columna \"condición\", en cada caso: reducción, ampliación, modificación o existente. \nIt shall be detailed the updates on the tab/s related with the family/ies to modify. Mark in the column \"condition\", in each case: reduction, expansion, modification or existing."]
["* ENSAYOS A PRESENTAR: Impacto y sistema de retención"]
["Condición\nCondition","Código\nCode","Descripción\nDescription","Aplicación\nApplication","Marca\nTrademark","Origen\nOrigin"]

{"sheet":"Cascos COI","index":56,"n_rows":13,"n_cols":7,"rows_kept":13,"cut":false,"hidden":true,"merged":[[8,1,8,5],[9,1,9,5],[10,0,10,5],[11,0,11,5],[12,0,13,0],[12,1,13,1],[12,2,13,2],[12,3,13,3],[12,4,13,4],[12,5,13,5],[5,0,5,5],[6,1,6,5],[7,1,7,5],[0,0,0,5],[1,0,1,5],[2,0,2,5],[3,0,3,5],[4,0,4,5]]}
["Licencia - License"]
["DC-M-"]
["Familia (de acuerdo con hoja \"Detalle de Autopartes\") - Family (According with Sheet \"Detalle de autopartes\")"]
["COI"]
["Se deberán detallar los modelos incluidos en la nueva familia, en la pestaña correspondiente. Esta actualización requiere aprobación de IRAM-AITA. Serán requeridos ensayos completos para la nueva familia. Ver Hoja \"Detalle de autopartes\".\n\nIt shall be detailed the models included in the new family, on the corresponding tab. This update requires the IRAM-AITA approval. It will be required complete tests for the new family.  See Sheet \"Detalle de autopartes\"."]
["Condición - Condition",null,null,null,null,null,"M"]
["B","Reducción de Productos certificados - Certified Product Reduction"]
["I*","Extensión de productos a certificar - Product extension"]
["M","Modificación - Modification"]
["E","Existente - Existing"]
["Se deberán detallar las actualizaciones en la/s pestaña/s correspondiente a la/s familia/s a modificar. Marcar en la columna \"condición\", en cada caso: reducción, ampliación, modificación o existente. \nIt shall be detailed the updates on the tab/s related with the family/ies to modify. Mark in the column \"condition\", in each case: reduction, expansion, modification or existing."]
["* ENSAYOS A PRESENTAR: Impacto y sistema de retención"]
["Condición\nCondition","Código\nCode","Descripción\nDescription","Aplicación\nApplication","Marca\nTrademark","Origen\nOrigin"]

{"sheet":"Cascos COM","index":57,"n_rows":13,"n_cols":7,"rows_kept":13,"cut":false,"hidden":true,"merged":[[8,1,8,5],[9,1,9,5],[10,0,10,5],[11,0,11,5],[12,0,13,0],[12,1,13,1],[12,2,13,2],[12,3,13,3],[12,4,13,4],[12,5,13,5],[5,0,5,5],[6,1,6,5],[7,1,7,5],[0,0,0,5],[1,0,1,5],[2,0,2,5],[3,0,3,5],[4,0,4,5]]}
["Licencia - License"]
["DC-M-"]
["Familia (de acuerdo con hoja \"Detalle de Autopartes\") - Family (According with Sheet \"Detalle de autopartes\")"]
["COM"]
["Se deberán detallar los modelos incluidos en la nueva familia, en la pestaña correspondiente. Esta actualización requiere aprobación de IRAM-AITA. Serán requeridos ensayos completos para la nueva familia. Ver Hoja \"Detalle de autopartes\".\n\nIt shall be detailed the models included in the new family, on the corresponding tab. This update requires the IRAM-AITA approval. It will be required complete tests for the new family.  See Sheet \"Detalle de autopartes\"."]
["Condición - Condition",null,null,null,null,null,"M"]
["B","Reducción de Productos certificados - Certified Product Reduction"]
["I*","Extensión de productos a certificar - Product extension"]
["M","Modificación - Modification"]
["E","Existente - Existing"]
["Se deberán detallar las actualizaciones en la/s pestaña/s correspondiente a la/s familia/s a modificar. Marcar en la columna \"condición\", en cada caso: reducción, ampliación, modificación o existente. \nIt shall be detailed the updates on the tab/s related with the family/ies to modify. Mark in the column \"condition\", in each case: reduction, expansion, modification or existing."]
["* ENSAYOS A PRESENTAR: Impacto y sistema de retención"]
["Condición\nCondition","Código\nCode","Descripción\nDescription","Aplicación\nApplication","Marca\nTrademark","Origen\nOrigin"]

{"sheet":"Cajas ME 1","index":58,"n_rows":12,"n_cols":7,"rows_kept":12,"cut":false,"hidden":true,"merged":[[8,1,8,5],[9,1,9,5],[10,0,10,5],[11,0,12,0],[11,1,12,1],[11,2,12,2],[11,3,12,3],[11,4,12,4],[11,5,12,5],[5,0,5,5],[6,1,6,5],[7,1,7,5],[0,0,0,5],[1,0,1,5],[2,0,2,5],[3,0,3,5],[4,0,4,5]]}
["Licencia - License"]
["DC-M-"]
["Familia (de acuerdo con hoja \"Detalle de Autopartes\") - Family (According with Sheet \"Detalle de autopartes\")"]
["ME1"]
["Se deberán detallar los modelos incluidos en la nueva familia, en la pestaña correspondiente. Esta actualización requiere aprobación de IRAM-AITA. Serán requeridos ensayos completos para la nueva familia. Ver Hoja \"Detalle de autopartes\".\n\nIt shall be detailed the models included in the new family, on the corresponding tab. This update requires the IRAM-AITA approval. It will be required complete tests for the new family.  See Sheet \"Detalle de autopartes\"."]
["Condición - Condition",null,null,null,null,null,"M"]
["B","Reducción de Productos certificados - Certified Product Reduction"]
["I*","Extensión de productos a certificar - Product extension"]
["M","Modificación - Modification"]
["E","Existente - Existing"]
["Se deberán detallar las actualizaciones en la/s pestaña/s correspondiente a la/s familia/s a modificar. Marcar en la columna \"condición\", en cada caso: reducción, ampliación, modificación o existente. \nIt shall be detailed the updates on the tab/s related with the family/ies to modify. Mark in the column \"condition\", in each case: reduction, expansion, modification or existing."]
["Condición\nCondition","Código\nCode","Descripción\nDescription","Aplicación\nApplication","Marca\nTrademark","Origen\nOrigin"]

{"sheet":"Cajas ME 2","index":59,"n_rows":12,"n_cols":7,"rows_kept":12,"cut":false,"hidden":true,"merged":[[8,1,8,5],[9,1,9,5],[10,0,10,5],[11,0,12,0],[11,1,12,1],[11,2,12,2],[11,3,12,3],[11,4,12,4],[11,5,12,5],[5,0,5,5],[6,1,6,5],[7,1,7,5],[0,0,0,5],[1,0,1,5],[2,0,2,5],[3,0,3,5],[4,0,4,5]]}
["Licencia - License"]
["DC-M-"]
["Familia (de acuerdo con hoja \"Detalle de Autopartes\") - Family (According with Sheet \"Detalle de autopartes\")"]
["ME2"]
["Se deberán detallar los modelos incluidos en la nueva familia, en la pestaña correspondiente. Esta actualización requiere aprobación de IRAM-AITA. Serán requeridos ensayos completos para la nueva familia. Ver Hoja \"Detalle de autopartes\".\n\nIt shall be detailed the models included in the new family, on the corresponding tab. This update requires the IRAM-AITA approval. It will be required complete tests for the new family.  See Sheet \"Detalle de autopartes\"."]
["Condición - Condition",null,null,null,null,null,"M"]
["B","Reducción de Productos certificados - Certified Product Reduction"]
["I*","Extensión de productos a certificar - Product extension"]
["M","Modificación - Modification"]
["E","Existente - Existing"]
["Se deberán detallar las actualizaciones en la/s pestaña/s correspondiente a la/s familia/s a modificar. Marcar en la columna \"condición\", en cada caso: reducción, ampliación, modificación o existente. \nIt shall be detailed the updates on the tab/s related with the family/ies to modify. Mark in the column \"condition\", in each case: reduction, expansion, modification or existing."]
["Condición\nCondition","Código\nCode","Descripción\nDescription","Aplicación\nApplication","Marca\nTrademark","Origen\nOrigin"]

{"sheet":"Cajas HI 1","index":60,"n_rows":12,"n_cols":7,"rows_kept":12,"cut":false,"hidden":true,"merged":[[8,1,8,5],[9,1,9,5],[10,0,10,5],[11,0,12,0],[11,1,12,1],[11,2,12,2],[11,3,12,3],[11,4,12,4],[11,5,12,5],[5,0,5,5],[6,1,6,5],[7,1,7,5],[0,0,0,5],[1,0,1,5],[2,0,2,5],[3,0,3,5],[4,0,4,5]]}
["Licencia - License"]
["DC-M-"]
["Familia (de acuerdo con hoja \"Detalle de Autopartes\") - Family (According with Sheet \"Detalle de autopartes\")"]
["HI1"]
["Se deberán detallar los modelos incluidos en la nueva familia, en la pestaña correspondiente. Esta actualización requiere aprobación de IRAM-AITA. Serán requeridos ensayos completos para la nueva familia. Ver Hoja \"Detalle de autopartes\".\n\nIt shall be detailed the models included in the new family, on the corresponding tab. This update requires the IRAM-AITA approval. It will be required complete tests for the new family.  See Sheet \"Detalle de autopartes\"."]
["Condición - Condition",null,null,null,null,null,"M"]
["B","Reducción de Productos certificados - Certified Product Reduction"]
["I*","Extensión de productos a certificar - Product extension"]
["M","Modificación - Modification"]
["E","Existente - Existing"]
["Se deberán detallar las actualizaciones en la/s pestaña/s correspondiente a la/s familia/s a modificar. Marcar en la columna \"condición\", en cada caso: reducción, ampliación, modificación o existente. \nIt shall be detailed the updates on the tab/s related with the family/ies to modify. Mark in the column \"condition\", in each case: reduction, expansion, modification or existing."]
["Condición\nCondition","Código\nCode","Descripción\nDescription","Aplicación\nApplication","Marca\nTrademark","Origen\nOrigin"]

{"sheet":"Cajas HI 2","index":61,"n_rows":12,"n_cols":7,"rows_kept":12,"cut":false,"hidden":true,"merged":[[8,1,8,5],[9,1,9,5],[10,0,10,5],[11,0,12,0],[11,1,12,1],[11,2,12,2],[11,3,12,3],[11,4,12,4],[11,5,12,5],[5,0,5,5],[6,1,6,5],[7,1,7,5],[0,0,0,5],[1,0,1,5],[2,0,2,5],[3,0,3,5],[4,0,4,5]]}
["Licencia - License"]
["DC-M-"]
["Familia (de acuerdo con hoja \"Detalle de Autopartes\") - Family (According with Sheet \"Detalle de autopartes\")"]
["HI2"]
["Se deberán detallar los modelos incluidos en la nueva familia, en la pestaña correspondiente. Esta actualización requiere aprobación de IRAM-AITA. Serán requeridos ensayos completos para la nueva familia. Ver Hoja \"Detalle de autopartes\".\n\nIt shall be detailed the models included in the new family, on the corresponding tab. This update requires the IRAM-AITA approval. It will be required complete tests for the new family.  See Sheet \"Detalle de autopartes\"."]
["Condición - Condition",null,null,null,null,null,"M"]
["B","Reducción de Productos certificados - Certified Product Reduction"]
["I*","Extensión de productos a certificar - Product extension"]
["M","Modificación - Modification"]
["E","Existente - Existing"]
["Se deberán detallar las actualizaciones en la/s pestaña/s correspondiente a la/s familia/s a modificar. Marcar en la columna \"condición\", en cada caso: reducción, ampliación, modificación o existente. \nIt shall be detailed the updates on the tab/s related with the family/ies to modify. Mark in the column \"condition\", in each case: reduction, expansion, modification or existing."]
["Condición\nCondition","Código\nCode","Descripción\nDescription","Aplicación\nApplication","Marca\nTrademark","Origen\nOrigin"]

{"sheet":"Cubiertas F1","index":62,"n_rows":12,"n_cols":7,"rows_kept":12,"cut":false,"hidden":true,"merged":[[8,1,8,5],[9,1,9,5],[10,0,10,5],[11,0,12,0],[11,1,12,1],[11,2,12,2],[11,3,12,3],[11,4,12,4],[11,5,12,5],[5,0,5,5],[6,1,6,5],[7,1,7,5],[0,0,0,5],[1,0,1,5],[2,0,2,5],[3,0,3,5],[4,0,4,5]]}
["Licencia - License"]
["DC-M-"]
["Familia (de acuerdo con hoja \"Detalle de Autopartes\") - Family (According with Sheet \"Detalle de autopartes\")"]
["F1"]
["Se deberán detallar los modelos incluidos en la nueva familia, en la pestaña correspondiente. Esta actualización requiere aprobación de IRAM-AITA. Serán requeridos ensayos completos para la nueva familia. Ver Hoja \"Detalle de autopartes\".\n\nIt shall be detailed the models included in the new family, on the corresponding tab. This update requires the IRAM-AITA approval. It will be required complete tests for the new family.  See Sheet \"Detalle de autopartes\"."]
["Condición - Condition",null,null,null,null,null,"M"]
["B","Reducción de Productos certificados - Certified Product Reduction"]
["I*","Extensión de productos a certificar - Product extension"]
["M","Modificación - Modification"]
["E","Existente - Existing"]
["Se deberán detallar las actualizaciones en la/s pestaña/s correspondiente a la/s familia/s a modificar. Marcar en la columna \"condición\", en cada caso: reducción, ampliación, modificación o existente. \nIt shall be detailed the updates on the tab/s related with the family/ies to modify. Mark in the column \"condition\", in each case: reduction, expansion, modification or existing."]
["Condición\nCondition","Código\nCode","Descripción\nDescription","Aplicación\nApplication","Marca\nTrademark","Origen\nOrigin"]

{"sheet":"Cubiertas F2","index":63,"n_rows":12,"n_cols":7,"rows_kept":12,"cut":false,"hidden":true,"merged":[[8,1,8,5],[9,1,9,5],[10,0,10,5],[11,0,12,0],[11,1,12,1],[11,2,12,2],[11,3,12,3],[11,4,12,4],[11,5,12,5],[5,0,5,5],[6,1,6,5],[7,1,7,5],[0,0,0,5],[1,0,1,5],[2,0,2,5],[3,0,3,5],[4,0,4,5]]}
["Licencia - License"]
["DC-M-"]
["Familia (de acuerdo con hoja \"Detalle de Autopartes\") - Family (According with Sheet \"Detalle de autopartes\")"]
["F2"]
["Se deberán detallar los modelos incluidos en la nueva familia, en la pestaña correspondiente. Esta actualización requiere aprobación de IRAM-AITA. Serán requeridos ensayos completos para la nueva familia. Ver Hoja \"Detalle de autopartes\".\n\nIt shall be detailed the models included in the new family, on the corresponding tab. This update requires the IRAM-AITA approval. It will be required complete tests for the new family.  See Sheet \"Detalle de autopartes\"."]
["Condición - Condition",null,null,null,null,null,"M"]
["B","Reducción de Productos certificados - Certified Product Reduction"]
["I*","Extensión de productos a certificar - Product extension"]
["M","Modificación - Modification"]
["E","Existente - Existing"]
["Se deberán detallar las actualizaciones en la/s pestaña/s correspondiente a la/s familia/s a modificar. Marcar en la columna \"condición\", en cada caso: reducción, ampliación, modificación o existente. \nIt shall be detailed the updates on the tab/s related with the family/ies to modify. Mark in the column \"condition\", in each case: reduction, expansion, modification or existing."]
["Condición\nCondition","Código\nCode","Descripción\nDescription","Aplicación\nApplication","Marca\nTrademark","Origen\nOrigin"]

{"sheet":"Cubiertas F3","index":64,"n_rows":12,"n_cols":7,"rows_kept":12,"cut":false,"hidden":true,"merged":[[8,1,8,5],[9,1,9,5],[10,0,10,5],[11,0,12,0],[11,1,12,1],[11,2,12,2],[11,3,12,3],[11,4,12,4],[11,5,12,5],[5,0,5,5],[6,1,6,5],[7,1,7,5],[0,0,0,5],[1,0,1,5],[2,0,2,5],[3,0,3,5],[4,0,4,5]]}
["Licencia - License"]
["DC-M-"]
["Familia (de acuerdo con hoja \"Detalle de Autopartes\") - Family (According with Sheet \"Detalle de autopartes\")"]
["F3"]
["Se deberán detallar los modelos incluidos en la nueva familia, en la pestaña correspondiente. Esta actualización requiere aprobación de IRAM-AITA. Serán requeridos ensayos completos para la nueva familia. Ver Hoja \"Detalle de autopartes\".\n\nIt shall be detailed the models included in the new family, on the corresponding tab. This update requires the IRAM-AITA approval. It will be required complete tests for the new family.  See Sheet \"Detalle de autopartes\"."]
["Condición - Condition",null,null,null,null,null,"M"]
["B","Reducción de Productos certificados - Certified Product Reduction"]
["I*","Extensión de productos a certificar - Product extension"]
["M","Modificación - Modification"]
["E","Existente - Existing"]
["Se deberán detallar las actualizaciones en la/s pestaña/s correspondiente a la/s familia/s a modificar. Marcar en la columna \"condición\", en cada caso: reducción, ampliación, modificación o existente. \nIt shall be detailed the updates on the tab/s related with the family/ies to modify. Mark in the column \"condition\", in each case: reduction, expansion, modification or existing."]
["Condición\nCondition","Código\nCode","Descripción\nDescription","Aplicación\nApplication","Marca\nTrademark","Origen\nOrigin"]

{"sheet":"Cubiertas F4","index":65,"n_rows":12,"n_cols":7,"rows_kept":12,"cut":false,"hidden":true,"merged":[[8,1,8,5],[9,1,9,5],[10,0,10,5],[11,0,12,0],[11,1,12,1],[11,2,12,2],[11,3,12,3],[11,4,12,4],[11,5,12,5],[5,0,5,5],[6,1,6,5],[7,1,7,5],[0,0,0,5],[1,0,1,5],[2,0,2,5],[3,0,3,5],[4,0,4,5]]}
["Licencia - License"]
["DC-M-"]
["Familia (de acuerdo con hoja \"Detalle de Autopartes\") - Family (According with Sheet \"Detalle de autopartes\")"]
["F4"]
["Se deberán detallar los modelos incluidos en la nueva familia, en la pestaña correspondiente. Esta actualización requiere aprobación de IRAM-AITA. Serán requeridos ensayos completos para la nueva familia. Ver Hoja \"Detalle de autopartes\".\n\nIt shall be detailed the models included in the new family, on the corresponding tab. This update requires the IRAM-AITA approval. It will be required complete tests for the new family.  See Sheet \"Detalle de autopartes\"."]
["Condición - Condition",null,null,null,null,null,"M"]
["B","Reducción de Productos certificados - Certified Product Reduction"]
["I*","Extensión de productos a certificar - Product extension"]
["M","Modificación - Modification"]
["E","Existente - Existing"]
["Se deberán detallar las actualizaciones en la/s pestaña/s correspondiente a la/s familia/s a modificar. Marcar en la columna \"condición\", en cada caso: reducción, ampliación, modificación o existente. \nIt shall be detailed the updates on the tab/s related with the family/ies to modify. Mark in the column \"condition\", in each case: reduction, expansion, modification or existing."]
["Condición\nCondition","Código\nCode","Descripción\nDescription","Aplicación\nApplication","Marca\nTrademark","Origen\nOrigin"]

{"sheet":"Baterias F1","index":66,"n_rows":13,"n_cols":11,"rows_kept":13,"cut":false,"hidden":true,"merged":[[10,0,10,10],[1,0,1,10],[3,0,3,10],[0,0,0,10],[2,0,2,10],[4,0,4,10],[5,0,5,10],[11,0,11,10],[6,1,6,10],[7,1,7,10],[8,1,8,10],[12,10,13,10],[12,0,13,0],[12,1,13,1],[12,2,13,2],[12,3,13,3],[12,4,13,4],[12,5,13,5],[12,6,13,6],[12,7,13,7],[12,8,13,8],[12,9,13,9],[9,1,9,10]]}
["Licencia - License"]
["DC-M-"]
["Familia (de acuerdo con hoja \"Detalle de Autopartes\") - Family (According with Sheet \"Detalle de autopartes\")"]
["F1"]
["Se deberán detallar los modelos incluidos en la nueva familia, en la pestaña correspondiente. Esta actualización requiere aprobación de IRAM-AITA. Serán requeridos ensayos completos para la nueva familia. Ver Hoja \"Detalle de autopartes\".\n\nIt shall be detailed the models included in the new family, on the corresponding tab. This update requires the IRAM-AITA approval. It will be required complete tests for the new family.  See Sheet \"Detalle de autopartes\"."]
["Condición - Condition"]
["B","Reducción de Productos certificados - Certified Product Reduction"]
["I*","Extensión de productos a certificar - Product extension"]
["M","Modificación - Modification"]
["E","Existente - Existing"]
["Se deberán detallar las actualizaciones en la/s pestaña/s correspondiente a la/s familia/s a modificar. Marcar en la columna \"condición\", en cada caso: reducción, ampliación, modificación o existente. \n\nIt shall be detailed the updates on the tab/s related with the family/ies to modify. Mark in the column \"condition\", in each case: reduction, expansion, modification or existing."]
["* ENSAYOS A PRESENTAR: Capacidad C20 (Ah); Reserva de Capacidad RC [min]; Alta intensidad de descarga en frío (CCA@-18ºC) [A]; Capacidad de arranque (CA - 0°C) [A]"]
["Condición\nCondition","Código\nCode","Descripción\nDescription","Aplicación\nApplication","Tensión","Capacidad C20 (Ah)","Reserva de Capacidad RC [min]","Alta intensidad de descarga en frío (CCA@-18ºC) [A]","Capacidad de arranque (CA - 0°C) [A]","Marca\nTrademark","Origen\nOrigin"]

{"sheet":"Baterias F2","index":67,"n_rows":13,"n_cols":11,"rows_kept":13,"cut":false,"hidden":true,"merged":[[8,1,8,10],[9,1,9,10],[10,0,10,10],[11,0,11,10],[12,0,13,0],[12,1,13,1],[12,2,13,2],[12,3,13,3],[12,4,13,4],[12,5,13,5],[12,6,13,6],[12,7,13,7],[12,8,13,8],[12,9,13,9],[12,10,13,10],[5,0,5,10],[6,1,6,10],[7,1,7,10],[0,0,0,10],[1,0,1,10],[2,0,2,10],[3,0,3,10],[4,0,4,10]]}
["Licencia - License"]
["DC-M-"]
["Familia (de acuerdo con hoja \"Detalle de Autopartes\") - Family (According with Sheet \"Detalle de autopartes\")"]
["F2"]
["Se deberán detallar los modelos incluidos en la nueva familia, en la pestaña correspondiente. Esta actualización requiere aprobación de IRAM-AITA. Serán requeridos ensayos completos para la nueva familia. Ver Hoja \"Detalle de autopartes\".\n\nIt shall be detailed the models included in the new family, on the corresponding tab. This update requires the IRAM-AITA approval. It will be required complete tests for the new family.  See Sheet \"Detalle de autopartes\"."]
["Condición - Condition"]
["B","Reducción de Productos certificados - Certified Product Reduction"]
["I*","Extensión de productos a certificar - Product extension"]
["M","Modificación - Modification"]
["E","Existente - Existing"]
["Se deberán detallar las actualizaciones en la/s pestaña/s correspondiente a la/s familia/s a modificar. Marcar en la columna \"condición\", en cada caso: reducción, ampliación, modificación o existente. \n\nIt shall be detailed the updates on the tab/s related with the family/ies to modify. Mark in the column \"condition\", in each case: reduction, expansion, modification or existing."]
["* ENSAYOS A PRESENTAR: Capacidad C20 (Ah); Reserva de Capacidad RC [min]; Alta intensidad de descarga en frío (CCA@-18ºC) [A]; Capacidad de arranque (CA - 0°C) [A]"]
["Condición\nCondition","Código\nCode","Descripción\nDescription","Aplicación\nApplication","Tensión","Capacidad C20 (Ah)","Reserva de Capacidad RC [min]","Alta intensidad de descarga en frío (CCA@-18ºC) [A]","Capacidad de arranque (CA - 0°C) [A]","Marca\nTrademark","Origen\nOrigin"]